{"text_format":"1","workbook":"xlsx","n_sheets":9,"sheets":["Prompt","C100","C200","C300","C317","C400","C700","C800","Enviar"],"not_rendered":{"charts":0,"images":6,"macros":1,"external_links":0,"defined_names":2,"comments":0,"pivot_tables":0},"unopened":[],"bounds":{"document_bytes":16777216,"sheet_cells":100000,"rows_first":2000,"rows_last":500,"rows_between":2000,"halvings":0,"cell_chars":16384,"cell_head_chars":4096},"cells_cut":0,"cells_raw":0,"read":"whole","date_system":"1900"}

{"sheet":"Prompt","index":0,"n_rows":79,"n_cols":4,"rows_kept":79,"cut":false,"hidden":true,"merged":[[1,3,2,6],[4,1,6,8],[43,1,44,8],[78,1,79,8],[9,1,10,8]]}
[]
[null,null,null,"¡ATENCIÓN!"]
[]
[]
[null,"Para hacer uso de las funcionalidades de esta Cédula Electrónica debe habilitar macros"]
[]
[]
[]
[]
[null,"Si utiliza Excel 2013 siga el siguiente procedimiento:"]
[]
[]
[]
[]
[]
[]
[]
[]
[]
[]
[]
[]
[]
[]
[]
[]
[]
[]
[]
[]
[]
[]
[]
[]
[]
[]
[]
[]
[]
[]
[]
[]
[]
[null,"Si utiliza Excel 2007 siga el siguiente procedimiento:"]
[]
[]
[]
[]
[]
[]
[]
[]
[]
[]
[]
[]
[]
[]
[]
[]
[]
[]
[]
[]
[]
[]
[]
[]
[]
[]
[]
[]
[]
[]
[]
[]
[]
[]
[null,"Si utiliza Excel 2000, 2002, 2003 siga el siguiente procedimiento:"]

{"sheet":"C100","index":1,"n_rows":432,"n_cols":29,"rows_kept":432,"cut":false,"hidden":false,"merged":[[12,6,12,8],[14,6,14,27],[16,6,16,14],[9,2,9,29],[175,6,175,8],[128,21,128,25],[64,23,64,27],[76,20,76,24],[144,9,144,13],[165,11,168,12],[100,8,100,12],[169,9,169,10],[170,9,170,10],[169,13,169,14],[170,13,170,14],[171,13,171,14],[172,13,172,14],[173,9,173,10],[174,9,174,10],[209,21,209,25],[175,11,175,12],[174,13,174,14],[175,13,175,14],[192,24,192,28],[173,13,173,14],[166,4,166,7],[165,9,168,10],[169,11,169,12],[170,11,170,12],[201,7,201,10],[171,9,171,10],[172,9,172,10],[172,11,172,12],[173,11,173,12],[174,11,174,12],[16,22,16,27],[64,8,64,9],[31,24,31,25],[33,24,33,26],[36,24,36,25],[63,8,63,9],[62,7,62,9],[62,10,62,11],[61,7,61,11],[54,13,54,14],[57,13,57,14],[217,11,219,11],[217,12,219,13],[12,20,12,22],[30,24,30,25],[28,24,28,26],[69,26,70,27],[72,26,72,27],[73,26,73,27],[74,26,74,27],[75,26,75,27],[164,13,168,14],[71,26,71,27],[164,9,164,12],[65,8,65,9],[175,9,175,10],[171,11,171,12],[306,7,306,10],[1,26,1,28],[2,26,3,28],[1,7,1,25],[2,7,2,25],[3,7,3,25],[49,2,49,29],[238,25,238,28],[248,25,248,28],[265,7,265,10],[278,7,278,10],[76,26,76,27],[90,23,90,28],[130,7,130,11],[89,9,89,13],[170,27,170,28]]}
[]
[null,null,null,null,null,null,null,"CENSO EDUCATIVO 2025",null,null,null,null,null,null,null,null,null,null,null,null,null,null,null,null,null,null,"CÉDULA"]
[null,null,null,null,null,null,null,"EDUCACIÓN BÁSICA REGULAR",null,null,null,null,null,null,null,null,null,null,null,null,null,null,null,null,null,null,"2A"]
[null,null,null,null,null,null,null,"INICIAL NO ESCOLARIZADA"]
[null,null,"Version:",null,"GA-1.2"]
[null,null,"INSTRUCCIONES DEL FORMATO ELECTRÓNICO "]
[]
[]
[]
[null,null,"IDENTIFICACIÓN DEL PROGRAMA EDUCATIVO"]
[null,null,"La fuente de estos datos debe ser la RD de Creación/Renovación del PRONOIE, según lo establecido por la RVM Nº 036-2015-ED"]
[]
[null,null,"1. CÓDIGO MODULAR :",null,null,null,null,null,null,null,null,null,null,"2. D.N.I. DE PROFESOR(A) COORDINADOR(A):",null,null,null,null,null,null,null,null,null,"-"]
[]
[null,null,"3. NOMBRE DEL PRONOEI :",null,null,null,""]
[]
[null,null,"4. DISTRITO :",null,null,null,"",null,null,null,null,null,null,null,null,null,null,null,"AUGAB",null,null,"5. LOCALIDAD / CENTRO POBLADO :"]
[]
[]
[null,null,null,"6.  ENTIDAD GESTORA",null,null,null,null,null,null,null,null,null,null,null,null,null,"8. TIPO DE PROGRAMA NO ESCOLARIZADO, SEGÚN CICLO:"]
[]
[null,null,null,null,null,"1 - Sector Educación",null,null,null,null,null,null,null,null,null,null,null,null,"Ciclo I:",null,{"$f":"CONCATENATE(V22,V23,V24)","v":""},null,"1 - Entorno Familiar"]
[null,null,null,null,null,"2 - Otro Sector Público o FF.AA.",null,null,null,null,null,null,null,null,null,null,null,null,null,null,null,null,"2 - Entorno Comunitario"]
[null,null,null,null,null,"3 - Municipalidad",null,null,null,null,null,null,null,null,null,null,null,null,null,null,null,null,"3- Salas de Educación Temprana (SET)"]
[null,null,null,null,null,"4 - Comunidad o Asoc. Religiosa - Católica Parroquial"]
[null,null,null,null,null,"5 - Otra Congregación / Asoc. Religiosa",null,null,null,null,null,null,null,null,null,null,null,null,"Ciclo II:",null,{"$f":"CONCATENATE(V26,V27)","v":""},null,"4 - Entorno Familiar"]
[null,null,null,null,null,"6 - Comunidad (comunal)",null,null,null,null,null,null,null,null,null,null,null,null,null,null,null,null,"5 - Entorno Comunitario"]
[null,null,null,null,null,"7 - Inst. Bénefica / Asociación Civil"]
[null,null,null,null,null,null,null,null,null,null,null,null,null,null,null,null,null,"9.  R.D. DE CREACIÓN",null,null,null,null,"Número R.D."]
[]
[null,null,null,"7.  FINANCIAMIENTO",null,null,null,null,null,null,null,null,null,null,null,null,null,null,null,null,null,null,"Día",null,"Mes",null,null,"Año"]
[null,null,null,null,null,null,null,null,null,null,null,null,null,null,null,null,null,null,null,"Fecha :",null,null,null,"-",null,null,"-"]
[null,null,null,null,null," 1 - Sector Educación"]
[null,null,null,null,null," 2 - Otro Sector Público o FF.AA.",null,null,null,null,null,null,null,null,null,null,null,"10.  R.D. DE RENOVACIÓN",null,null,null,null,"Número R.D."]
[null,null,null,null,null," 3 - Municipalidad"]
[null,null,null,null,null," 4 - Otra fuente privada",null,null,null,null,null,null,null,null,null,null,null,null,null,null,null,null,"Día",null,"Mes",null,null,"Año"]
[null,null,null,null,null,null,null,null,null,null,null,null,null,null,null,null,null,null,null,"Fecha :",null,null,null,"-",null,null,"-"]
["GESTIÓN"]
[]
[]
[]
[]
[]
[]
[]
[]
[{"$f":"CONCATENATE(K47,R47,Y47)","v":""},null,null,null,"Esta Institución Educativa es de Gestión : ",null,null,null,null,null,null," 1 - Pública de gestión directa",null,null,null,null,null,null," 2 - Pública de gestión privada",null,null,null,null,null,null," 3 - Privada"]
[]
[]
[null,null,"100. CARACTERÍSTICAS DEL SERVICIO EDUCATIVO (Para PRONOEI Públicos y Privados)"]
[]
[null,null,null,"A. CARACTERÍSTICA DE LA ENSEÑANZA"]
[null,null,null,"101.A CON RESPECTO A LAS CLASES:",null,null,null,null,null,null,null,null,null,null,null,null,null,"107.A. DURANTE EL AÑO 2024 ¿HA COORDINADO CON ALGUNA INSTITUCIÓN PARA"]
[null,null,null,null,"A. ¿CUANDO INICIARON LAS CLASES?",null,null,null,null,null,null,"Día",null,"Mes",null,null,null,null,"REALIZAR ACTIVIDADES RELACIONADAS CON LA LUCHA CONTRA LA ANEMIA?"]
[null,null,null,null,"(Primer día en que asistieron los estudiantes)",null,null,null,null,null,null,null,"-"]
[null,null,null,null,null,null,null,null,null,null,null,null,null,null,null,null,null,null,"Sí",null,null,null,null,"No  ",null,null,null,"No sabe  "]
[null,null,null,null,"B. ¿CUANDO TERMINARÁN LAS CLASES?",null,null,null,null,null,null,"Día",null,"Mes"]
[null,null,null,null,"(Último día en que asistiran los estudiantes)",null,null,null,null,null,null,null,"-",null,null,null,null,null,null,null,null,"¿Qué entidad organizó las actividades?"]
[null,null,null,null,null,null,null,null,null,null,null,null,null,null,null,null,null,null,null,null,null,"Marque con una “X”, una o más opciones"]
[null,null,null,"102.A. HORARIO DE CLASES DE LAS/LOS ESTUDIANTES:"]
[null,null,null,null,null,null,null,null,null,null,null,null,null,null,null,null,null,null,null,null,null,null,"UGEL / DRE / GRE"]
[null,null,null,null,null,null,null,"Horario de clases",null,null,null,null,null,null,null,null,null,null,null,null,null,null,"Establecimiento de Salud"]
[null,null,null,null,null,"TURNO",null,"Inicio",null,null,"Termino",null,null,null,null,null,null,null,null,null,null,null,"Municipalidad"]
[null,null,null,null,null,null,{"$f":"G65+G66","v":0},"Horas","Minutos",null,"Horas","Minutos",null,null,null,null,null,null,null,null,null,null,"Organización No Gubernamental (ONG)"]
[null,null,null,null,"1","Mañana",{"$f":"SUM(H65:L65)","v":0},null,null,null,null,null,null,null,null,null,null,null,null,null,null,null,"Otro"]
[null,null,null,null,"2","Tarde",{"$f":"SUM(H66:L66)","v":0}]
[null,null,null,null,null,null,null,null,null,null,null,null,null,null,null,null,null,"108.A. DURANTE EL AÑO 2024 ¿SE REALIZARÓN TALLERES DIRIGIDOS A LOS PADRES DE"]
[null,null,null,"103.A. SOLO, SI LAS CLASES EMPEZARON EN UNA FECHA POSTERIOR A LA PROGRAMADA,",null,null,null,null,null,null,null,null,null,null,null,null,null,null,"FAMILIA O APODERADOS EN EL PRONOEI?"]
[null,null,null,null,"INDIQUE EL MOTIVO:",null,null,null,null,null,null,null,null,null,null,null,null,null,"Marque con una “X” Si o No realizó talleres "]
[null,null,null,null,"Marque con una “X”, una o más opciones",null,null,null,null,null,null,null,null,null,null,null,null,null,null,null,null,null,null,null,null,null,"Cantidad de talleres"]
[null,null,null,null,null,null,null,null,null,null,null,null,null,null,null,null,null,null,"Talleres de …",null,null,null,null,null,null,"SI - NO"]
[null,null,null,null,null,"  1 - Dificultad para la identificación del Promotor Educativo Comunitario (a).",null,null,null,null,null,null,null,null,null,null,null,null,1,"Aprendizajes"]
[null,null,null,null,null,"  2 - No se contó con financiamiento oportuno.",null,null,null,null,null,null,null,null,null,null,null,null,2,"Pautas de Crianza"]
[null,null,null,null,null,"  3 - No se contó con las condiciones para el funcionamiento del PRONOEI.",null,null,null,null,null,null,null,null,null,null,null,null,3,"Violencia"]
[null,null,null,null,null,"  4 - Fenómeno Climatológico / Desastre natural.",null,null,null,null,null,null,null,null,null,null,null,null,4,"Inclusión"]
[null,null,null,null,null,null,null,null,null,null,null,null,null,null,null,null,null,null,5,"Alimentación y hábitos de higiene"]
[null,null,null,"104.A. DURANTE EL PROCESO DE MATRÍCULA DEL PERIODO 2025, LOS PADRES DE FAMILIA,",null,null,null,null,null,null,null,null,null,null,null,null,null,null,6,"Otro"]
[null,null,null,null,"CUIDADORES(AS) O APODERADOS(AS) QUE SOLICITARON UNA O MÁS VACANTES EN ESTE",null,null,null,null,null,null,null,null,null,null,null,null,null,null,null,null,null,null,null,null,{"$f":"COUNTIF(Z72:Z77,\"SI\")+COUNTIF(Z72:Z77,\"NO\")","v":0}]
[null,null,null,null,"SERVICIO/NIVEL EDUCATIVO, ¿LOGRARON OBTENER EL TOTAL DE VACANTES SOLICITADAS?",null,null,null,null,null,null,null,null,null,null,null,null,"109.A. ESTE PRONOEI, ¿REALIZA COORDINACIONES Y/O ACCIONES DE ARTICULACIÓN CON"]
[null,null,null,null,null,null,null,null,null,null,null,null,null,null,null,null,null,null,"EL ESTABLECIMIENTO DE SALUD?"]
[null,null,null,null,"Sí",null,null,null,null,"No  "]
[null,null,null,null,null,null,null,null,null,null,null,null,null,null,null,null,null,null,"Sí",null,null,null,null,"No  "]
[]
[null,null,null,null,null,null,"¿Por qué no se logró asignar una o mas vacantes solicitadas?",null,null,null,null,null,null,null,null,null,null,null,null,null,"¿Qué tipo de coordinaciones y/o acciones realiza?"]
[null,null,null,null,null,null,"Marque con una “X”, una opción",null,null,null,null,null,null,null,null,null,null,null,null,null,"Marque con una “X”, una o más opciones"]
[]
[null,null,null,null,null,null,null,"No hay capacidad en la IE para recibir mas estudiantes",null,null,null,null,null,null,null,null,null,null,null,null,null,"Salud física de estudiantes"]
[null,null,null,null,null,null,null,"Sí hay capacidad, pero algunas aulas presentan condiciones de alto riesgo",null,null,null,null,null,null,null,null,null,null,null,null,null,"Salud física de docentes"]
[null,null,null,null,null,null,null,"Se priorizó mantener una carga docente baja para favorecer el aprendizaje",null,null,null,null,null,null,null,null,null,null,null,null,null,"Salud mental del estudiante"]
[null,null,null,null,null,null,null,"Otros",null,null,null,null,null,null,null,null,null,null,null,null,null,"Salud mental del docente"]
[null,null,null,null,null,null,null,null,null,null,null,null,null,null,null,null,null,null,null,null,null,"Otros      "]
[null,null,null,"105.A. EN LOS ÚLTIMOS TRES MESES, ¿SE COORDINÓ U OFRECIÓ ALGÚN"]
[null,null,null,null,"PROGRAMA O SERVICIO?, COMO:",null,null,null,null,null,null,null,null,null,null,null,null,"110.A. ESTE PRONOEI, ¿CUENTA CON UN BOTIQUÍN IMPLEMENTADO SEGÚN LO ESTABLECIDO POR"]
[null,null,null,null,"Marque con una “X”, una o más opciones",null,null,null,null,null,null,null,null,null,null,null,null,null,"EL MINISTERIO DE SALUD?"]
[]
[null,null,null,null,null,null,"Campaña de vacunación",null,null,null,null,null,null,null,null,null,null,null,"Sí","",null,null,null,"No  "]
[null,null,null,null,null,null,"Control de crecimiento y desarrollo"]
[null,null,null,null,null,null,"SAANEE",null,null,null,null,null,null,null,null,null,null,"111.A. ESTE PRONOEI Y EL ESTABLECIMIENTO DE SALUD, ¿ESTABLECIERON UN CRONOGRAMA"]
[null,null,null,null,null,null,"PRITE",null,null,null,null,null,null,null,null,null,null,null,"PARA LAS PRESTACIONES Y ACCIONES DE SALUD, QUESE ENCUENTRAN INCLUIDAS"]
[null,null,null,null,null,null,"Servicio de Apoyo Educativo Virtual (SAEV)",null,null,null,null,null,null,null,null,null,null,null,"EN EL PLAN ANUAL DE TRABAJO?"]
[null,null,null,null,null,null,"Otro"]
[null,null,null,null,null,null,"Ninguno",null,null,null,null,null,null,null,null,null,null,null,"Sí","",null,null,null,"No  "]
[]
[null,null,null,"106.A. ESTE SERVICIO/NIVEL EDUCATIVO, ¿CUENTA CON UN PLAN APROBADO DE LUCHA",null,null,null,null,null,null,null,null,null,null,null,null,null,"112.A. ¿CUÁNTAS INTERVENCIONES O CAMBIOS SIGNIFICATIVOS, EN LOS QUE HAYA"]
[null,null,null,null,"CONTRA LA ANEMIA?",null,null,null,null,null,null,null,null,null,null,null,null,null,"INTERVENIDO LA COOPERACIÓN INTERNACIONAL, HA EXPERIMENTADO SU PRONOEI"]
[null,null,null,null,null,null,null,null,null,null,null,null,null,null,null,null,null,null,"EN EL ÚLTIMO AÑO, CON EL OBJETIVO DE MEJORAR LA CALIDAD EDUCATIVA Y/O"]
[null,null,null,null,"Sí",null,null,null,null,"No  ",null,null,null,null,null,null,null,null,"EN EL FUNCIONAMIENTO INSTITUCIONAL?"]
[]
[null,null,null,null,null,null,null,"¿Está incorporado en los documentos de gestión?",null,null,null,null,null,null,null,null,null,null,null,null,"Cantidad de intervenciones"]
[]
[null,null,null,null,null,null,null,"Sí",null,null,null,"No  "]
[]
[]
[null,null,null,"B. TUTORÍA , ORIENTACIÓN EDUCATIVA Y CONVIVENCIA ESCOLAR"]
[null,null,null,"101.B. EL PRONOEI, ¿INCLUYE EN EL PLAN TOECE, ACTIVIDADES VINCULADAS A LA CONVIVENCIA",null,null,null,null,null,null,null,null,null,null,null,null,null,"106.B. EL PRONOEI QUE DIRIGE, ¿DURANTE EL PRESENTE AÑO HA RECIBIDO O VIENE"]
[null,null,null,null,"ESCOLAR Y PREVENCIÓN/ATENCIÓN DE LA VIOLENCIA ESCOLAR?",null,null,null,null,null,null,null,null,null,null,null,null,null,"RECIBIENDO APOYO DE ALGUNA EMPRESA PRIVADA O DE ALGUNA ONG EN TEMAS DE MEJORA"]
[null,null,null,null,null,null,null,null,null,null,null,null,null,null,null,null,null,null,"DE INFRAESTRUCTURA, MOBILIARIO Y EQUIPAMIENTO O CAPACITACIÓN A LAS PEC?"]
[null,null,null,null,"Sí",null,null,null,null,"No  ",null,null,"Pase a la pregunta 103.B"]
[null,null,null,null,null,null,null,null,null,null,null,null,null,null,null,null,null,null,"Sí",null,null,null,null,"No  ",null,null,"Pase a la pregunta 108.B"]
[null,null,null,"102.B. EN EL PRESENTE AÑO, ¿CUÁLES SON LAS ACTIVIDADES QUE REALIZÓ ESTE PRONOEI"]
[null,null,null,null,"PARA LA PROMOCIÓN DE LA CONVIVENCIA ESCOLAR Y/O PREVENCIÓN DE LA",null,null,null,null,null,null,null,null,null,null,null,null,"107.B. INDIQUE EL TIPO DE APOYO QUE HA RECIBIDO DE LA EMPRESA PRIVADA U ONG"]
[null,null,null,null,"VIOLENCIA CONTRA LAS Y LOS ESTUDIANTES?",null,null,null,null,null,null,null,null,null,null,null,null,null,"MENCIONADA EN SU RESPUESTA ANTERIOR"]
[null,null,null,null,"Marque con una “X”, una o más opciones",null,null,null,null,null,null,null,null,null,null,null,null,null,"Marque con una “X”, una o más opciones"]
[]
[null,null,null,null,null,"Gestión de talleres o reuniones con estudiantes.",null,null,null,null,null,null,null,null,null,null,null,null,null,"Infraestructura"]
[null,null,null,null,null,"Capacitación a PEC para prevenir y/o atender casos de riesgo.",null,null,null,null,null,null,null,null,null,null,null,null,null,"Mobiliario"]
[null,null,null,null,null,"Envío de orientaciones a apoderados/as.",null,null,null,null,null,null,null,null,null,null,null,null,null,"Equipamiento"]
[null,null,null,null,null,"Gestión de talleres o reuniones con apoderados/as.",null,null,null,null,null,null,null,null,null,null,null,null,null,"Capacitación a la PEC"]
[null,null,null,null,null,"Gestión de estrategias en conjunto con otras organizaciones.",null,null,null,null,null,null,null,null,null,null,null,null,null,"Otros"]
[null,null,null,null,null,"Monitoreo de situación emocional y familiar de estudiantes."]
[null,null,null,null,null,"Otro",null,null,null,null,null,null,null,null,null,null,null,"108.B. ESTE PRONEI, ¿CUENTA CON NORMAS DE CONVIVENCIA ESCOLAR ACTUALIZADAS"]
[null,null,null,null,null,null,null,null,null,null,null,null,null,null,null,null,null,null,"PARA EL PRESENTE AÑO?"]
[null,null,null,"103.B. ESTE PRONOEI, ¿RECIBE ASISTENCIA TÉCNICA PARA LA PROMOCIÓN DE LA CONVIVENCIA"]
[null,null,null,null,"ESCOLAR, LA PREVENCIÓN Y ATENCIÓN DE LA VIOLENCIA ESCOLAR?",null,null,null,null,null,null,null,null,null,null,null,null,null,"Sí",null,null,null,null,"No  ",null,null,"Pase a la pregunta 111.B"]
[]
[null,null,null,null,"Sí","",null,null,null,"No  ",null,null,null,null,null,null,null,null,null,null,null,"¿Están incorporadas en el reglamento interno del PE?"]
[]
[null,null,null,null,null,null,null,"¿De quién recibe la asistencia técnica?",null,null,null,null,null,null,null,null,null,null,null,null,null,null,null,"Sí",null,null,null,"No  "]
[null,null,null,null,null,null,null,"Marque con una “X”, una o más opciones"]
[null,null,null,null,null,null,null,null,null,null,null,null,null,null,null,null,null,null,null,null,null,"¿El Reglamento Interno que incluye las normas de convivencia escolar?"]
[null,null,null,null,null,null,null,"","MINEDU"]
[null,null,null,null,null,null,null,"","DRE/GRE",null,null,null,null,null,null,null,null,null,null,null,null,null,null,"Sí",null,null,null,"No  "]
[null,null,null,null,null,null,null,"","UGEL"]
[null,null,null,null,null,null,null,"","ONG"]
[null,null,null,null,null,null,null,"","Otros",null,null,null,null,null,null,null,null,"109.B. LAS NORMAS DE CONVIVENCIA ESCOLAR, ¿HAN SIDO CONSTRUIDAS CON LA"]
[null,null,null,null,null,null,null,null,null,null,null,null,null,null,null,null,null,null,"PARTICIPACIÓN DE REPRESENTANTES DE LAS/LOS ESTUDIANTES?"]
[null,null,null,"104.B. ¿USTED HA RECURRIDO A LA UGEL/DRE/GRE SOLICITANDO ORIENTACIONES"]
[null,null,null,null,"PARA MEJORAR LA CONVIVENCIA EN SU PRONOEI?",null,null,null,null,null,null,null,null,null,null,null,null,null,"Sí",null,null,null,null,"No  "]
[]
[null,null,null,null,"Sí",null,null,null,null,"No  "]
[null,null,null,null,null,null,null,null,null,null,null,null,null,null,null,null,null,"110.B. ESTE PRONOEI, ¿CUENTA CON AL MENOS UNA/UN RESPONSABLE DE CONVIVENCIA"]
[null,null,null,null,null,null,null,"¿Usted ha recibido alguna información y/o capacitación?",null,null,null,null,null,null,null,null,null,null,"ESCOLAR ASIGNADO PARA EL PRESENTE AÑO?"]
[]
[null,null,null,null,null,null,null,null,null,null,null,null,"No  ",null,null,null,null,null,"Sí",null,null,null,null,"No  "]
[]
[null,null,null,"105.B. EL PRONOEI, ¿CUENTA CON UN MAPA O DIRECTORIO DE ALIADOS ESTRATÉGICOS PARA",null,null,null,null,null,null,null,null,null,null,null,null,null,null,null,null,null,"¿Se encuentra registrado como administrador del portal SíseVe?"]
[null,null,null,null,"LA PREVENCIÓN Y ATENCIÓN DE CASOS DE VIOLENCIA ESCOLAR?"]
[null,null,null,null,null,null,null,null,null,null,null,null,null,null,null,null,null,null,null,null,null,"Sí",null,null,null,null,"No  "]
[null,null,null,null,"Sí","",null,null,null,"No  ",null,null,"Pase a la pregunta 110.B"]
[]
[null,null,null,null,null,null,null,null,null,null,null,null,null,null,null,null,null,"111.B. EL PRONOEI, ¿CUENTA CON UN LIBRO DE REGISTRO DE INCIDENCIAS, SOBRE VIOLENCIA"]
[null,null,null,null,"Indique, ¿Quiénes lo conforman, con quiénes viene trabajando",null,null,null,null,null,null,null,null,null,null,null,null,null,"Y ACOSO ESCOLAR EN EL MARCO DE LA LEY N° 29719?"]
[null,null,null,null,"actualmente y si ha realizado alguna actividad coordinada?"]
[null,null,null,null,null,null,null,null,null,null,null,null,null,null,null,null,null,null,"Sí",null,null,null,null,"No  ",null,null,"Pase a la pregunta 101.C"]
[null,null,null,null,null,null,null,null,null,"¿Trabaja actualmente en?",null,null,null,"¿Ha realizado alguna actividad coordinada?"]
[null,null,null,null,null,null,null,null,null,"Prevención y atención de casos de violencia",null,"Promover el bienestar socioemocional de los estudiantes"]
[null,null,null,null,"Aliados estratégicos",null,null,null,null,null,null,null,null,null,null,null,null,"112.B. EN EL AÑO 2024, ¿SE HIZO USO DEL LIBRO DE REGISTRO DE INCIDENCIAS?"]
[]
[null,null,null,null,null,null,null,null,{"$f":"COUNTIF(J170:O176,\"SI\")+COUNTIF(J170:O176,\"NO\")","v":0},null,null,null,null,null,null,null,null,null,"Sí",null,null,null,null,"No  "]
[null,null,null,null,1,"DEMUNA",null,null,null,"",null,"",null,""]
[null,null,null,null,2,"Defensoría del pueblo",null,null,null,"",null,"",null,"",null,null,null,null,null,null,"¿Cuántas incidencias se registraron en el año 2024?"]
[null,null,null,null,3,"Centro de emergencia Mujer",null,null,null,"",null,"",null,""]
[null,null,null,null,4,"Centro o posta de salud",null,null,null,"",null,"",null,""]
[null,null,null,null,5,"Iglesia",null,null,null,"",null,"",null,"",null,null,null,null,null,null,"Fecha en la que se registró la última incidencia ",null,null,null,null,null,"DÍA","MES","AÑO"]
[null,null,null,null,6,"Comisaría",null,null,null,"",null,"",null,"",null,null,null,null,null,null,"relacionada a casos de violencia escolar"]
[null,null,null,null,7,"Otro","",null,null,"",null,"",null,""]
[null,null,null,null,null,null,null,null,null,{"$f":"COUNTIF(J170:J176,\"SI\")+COUNTIF(J170:J176,\"NO\")","v":0},null,{"$f":"COUNTIF(L170:L176,\"SI\")+COUNTIF(L170:L176,\"NO\")","v":0},null,{"$f":"COUNTIF(N170:N176,\"SI\")+COUNTIF(N170:N176,\"NO\")","v":0}]
[]
[null,null,null,"C. ACOMPAÑAMIENTO Y SOPORTE PEDAGÓGICO"]
[null,null,null,"101.C. EN EL PRESENTE AÑO Y HASTA LA FECHA DE APLICACIÓN DEL CENSO EDUCATIVO 2025,",null,null,null,null,null,null,null,null,null,null,null,null,null,"103.C. EL PRONOEI, ¿REALIZA ACTIVIDADES CON FAMILIAS Y COMUNIDAD QUE AYUDEN A LA"]
[null,null,null,null,"EL PRONOEI, ¿HA RECIBIDO ASISTENCIA TÉCNICA PRESENCIAL O VIRTUAL",null,null,null,null,null,null,null,null,null,null,null,null,null,"PROMOCIÓN DE UN AMBIENTE INSTITUCIONAL FAVORABLE PARA LA ATENCIÓN"]
[null,null,null,null,"DEL ESPECIALISTA PEDAGÓGICO DE LA UGEL/DRE/GRE/MINEDU?",null,null,null,null,null,null,null,null,null,null,null,null,null,"DE LA DIVERSIDAD?"]
[]
[null,null,null,null,"Sí","",null,null,null,"No  ",null,null,null,null,null,null,null,null,"Sí","",null,null,null,"No  "]
[]
[null,null,null,null,null,null,null,"¿Cuántas veces ha recibido asistencia técnica en total?",null,null,null,null,null,null,null,null,null,null,null,null,null,"¿Qué actividades realiza?"]
[null,null,null,null,null,null,null,"Marque con una “X”, solo una opción para cada caso",null,null,null,null,null,null,null,null,null,null,null,null,null,"Marque con una “X”, una o más opciones"]
[]
[null,null,null,null,null,null,null,null,null,null,null,1,2,3,"4 +",null,null,null,null,null,null,"","Acompañamiento en el proceso de aprendizaje"]
[null,null,null,null,null,null,null,null,"Presencial",null,null,"","","","","",null,null,null,null,null,"","Actividades que fortalecen las competencias parentales"]
[null,null,null,null,null,null,null,null,"Virtual/Remota",null,null,"","","","",null,null,null,null,null,null,"","Vínculos afectivos con hijos e hijas"]
[null,null,null,null,null,null,null,null,null,null,null,null,null,null,null,null,null,null,null,null,null,"","Jornadas con madres y padres"]
[null,null,null,null,null,null,null,null,null,null,null,null,null,null,null,null,null,null,null,null,null,"","Otros"]
[]
[null,null,null,"102.C. EN EL PRONOEI VISITADO, ¿QUÉ ESTRATEGIAS DE ACOMPAÑAMIENTO",null,null,null,null,null,null,null,null,null,null,null,null,null,"104.C. EN EL AÑO 2024, ¿SE REALIZÓ EL INFORME DEL PROGRESO DE LOS"]
[null,null,null,null,"PEDAGÓGICO SE REALIZASTE?",null,null,null,null,null,null,null,null,null,null,null,null,null,"ESTUDIANTES A LOS PADRES DE FAMILIA?"]
[null,null,null,null,"Marque con una “X”, una o más opciones"]
[null,null,null,null,null,null,null,null,null,null,null,null,null,null,null,null,null,null,"Sí",null,null,null,null,"No  ",null,null,"Pase a la pregunta 101.D"]
[null,null,null,null,null,"Visita en aula"]
[null,null,null,null,null,"Grupos de Interaprendizaje (GIA)",null,null,null,null,null,"¿Cuántos?"]
[null,null,null,null,null,"Talleres",null,null,null,null,null,"Marque con una “X”, una opción",null,null,null,null,null,null,null,null,null,"¿Cuántas veces?"]
[null,null,null,null,null,"Otros"]
[null,null,null,null,null,null,null,null,null,null,null,null,null,"de 1 a 4",null,null,null,"105.C. ¿CÓMO SE REALIZÓ LA ENTREGA DEL INFORME DEL PROGRESO DE LOS"]
[null,null,null,null,null,null,null,null,null,null,null,null,null,"de 5 a 8",null,null,null,null,"ESTUDIANTES A LOS PADRES DE FAMILIA EN EL AÑO 2024?"]
[null,null,null,null,null,null,null,null,null,null,null,null,null,"Más de 8",null,null,null,null,"Marque con una “X”, solo una opción"]
[]
[null,null,null,null,null,null,null,null,null,null,null,null,null,null,null,null,null,null,null,"Individual"]
[null,null,null,null,null,null,null,null,null,null,null,null,null,null,null,null,null,null,null,"Pequeños grupos"]
[null,null,null,null,null,null,null,null,null,null,null,null,null,null,null,null,null,null,null,"Grupal"]
[null,null,null,null,null,null,null,null,null,null,null,null,null,null,null,null,null,null,null,"Otros"]
[]
[]
[null,null,null,"D. SERVICIOS CON PERTINENCIA CULTURAL (GESTIÓN PÚBLICA Y PRIVADA)"]
[null,null,null,"101.D. DE ACUERDO CON LAS PRACTICAS COTIDIANAS Y COSTUMBRES, ¿USTED CONSIDERA",null,null,null,null,null,null,null,null,null,null,null,null,null,"102.D. EN ESTE PRONOEI, ¿LOS PEC CONSIDERAN LOS SABERES Y PRÁCTICAS CULTURALES"]
[null,null,null,null,"QUE SU PRONOEI CUENTA CON ESTUDIANTES PERTENECIENTES A LOS SIGUIENTES",null,null,null,null,null,null,null,null,null,null,null,null,null,"DEL PUEBLO O PUEBLOS ORIGINARIOS DE SUS ESTUDIANTES EN SUS ACTIVIDADES"]
[null,null,null,null,"GRUPOS ÉTNICOS?",null,null,null,null,null,null,null,null,null,null,null,null,null,"PEDAGÓGICAS?"]
[]
[null,null,null,null,null,null,null,null,null,null,null,"¿Tiene estudiantes?","Solo si respondió “Sí” % estimado del total de estudiantes"]
[null,null,null,null,null,null,"GRUPO ÉTNICO",null,null,null,null,null,null,null,null,null,null,null,"Sí","",null,null,null,"No  "]
["SI / NO",null,null,null,null,null,null,null,null,null,{"$f":"COUNTIF(L221:L228,\"SI\")+COUNTIF(L221:L228,\"NO\")","v":0}]
["SI",null,null,null,1,"Quechua",null,null,null,null,null,null,null,"%"]
["NO",null,null,null,2,"Aimara",null,null,null,null,null,null,null,"%"]
[null,null,null,null,3,"Indígena u originario de la Amazonía",null,null,null,null,null,null,null,"%"]
[null,null,null,null,4,"Perteneciente o parte de otro pueblo indígena",null,null,null,null,null,null,null,"%"]
[null,null,null,null,5,"Negro moreno, zambo, mulato o afroperuano",null,null,null,null,null,null,null,"%"]
[null,null,null,null,6,"Blanco",null,null,null,null,null,null,null,"%"]
[null,null,null,null,7,"Mestizo",null,null,null,null,null,null,null,"%"]
[null,null,null,null,8,"Otros",null,null,null,null,null,null,null,"%"]
[null,null,null,null,null,null,null,null,null,null,null,null,{"$f":"SUM(M221:M228)","v":0}]
[]
[null,null,null,"E. CARACTERÍSTICAS DE LA ENSEÑANZA EN CONTEXTOS INTERCULTURALES BILINGÜES (GESTIÓN PÚBLICA Y PRIVADA)"]
[null,null,null,"101.E. ¿ESTE PRONOEI ESTÁ RECONOCIDO COMO EIB?",null,null,null,null,null,null,null,null,null,null,null,null,null,"104.E. USTED, PROMOTOR EDUCATIVO COMUNITARIO, ¿CONOCE SI EN LA COMUNIDAD DONDE"]
[null,null,null,null,null,null,null,null,null,null,null,null,null,null,null,null,null,null,"SE ENCUENTRA EL PRONOEI, LOS PADRES DE FAMILIA, OTROS ADULTOS Y/O ANCIANOS Y"]
[null,null,null,null,"Sí",null,"u","EIB de Fortalecimiento",null,null,null,null,null,null,null,null,null,null,"ANCIANAS HABLAN UNA LENGUA ORIGINARIA?"]
[{"$f":"CONCATENATE(M235,J236)","v":""},null,null,null,null,null,null,"EIB de Revitalización"]
[null,null,null,null,null,null,null,null,null,null,null,null,null,null,null,null,null,null,"Sí","",null,null,null,"No  "]
[null,null,null,null,"No  ","",null,null,"Pase a la pregunta 104.E."]
[]
[null,null,null,null,"SOLO SI ES EIB DE FORTALECIMIENTO, RESPONDA:",null,null,null,null,null,null,null,null,null,null,null,null,null,null,null,null,"¿Qué lengua originaria?",null,null,null,""]
[]
[null,null,null,"102.E. ESTE PRONOEI, ¿OFRECE ENSEÑANZA DEL CASTELLANO COMO SEGUNDA LENGUA?"]
[null,null,null,null,null,null,null,null,null,null,null,null,null,null,null,null,null,"105.E. LOS ESTUDIANTES DE ESTE PRONOEI, ¿HABLAN UNA LENGUA ORIGINARIA?"]
[null,null,null,null,"Sí",null,null,null,null,"No  "]
[null,null,null,null,null,null,null,null,null,null,null,null,null,null,null,null,null,null,"Sí",null,null,null,null,"No  "]
[null,null,null,null,"SOLO SI ES EIB DE REVITALIZACIÓN, RESPONDA:"]
[]
[null,null,null,"103.E. ESTE PRONOEI, ¿OFRECE ENSEÑANZA DE LA LENGUA ORIGINARIA COMO SEGUNDA LENGUA?",null,null,null,null,null,null,null,null,null,null,null,null,null,null,null,null,null,"Todos",null,null,null,"¿Qué lengua  originaria? "]
[null,null,null,null,null,null,null,null,null,null,null,null,null,null,null,null,null,null,null,null,null,"La mayoría",null,null,"u"]
[null,null,null,null,"Sí",null,null,null,null,"No  ",null,null,null,null,null,null,null,null,null,null,null,"Pocos",null,null,null,""]
[null,null,null,null,null,null,null,null,null,null,null,null,null,null,null,null,null,null,null,null,null,null,null,{"$f":"CONCATENATE(X247,X248,X249)","v":""}]
[]
[]
[null,null,null,"F. SERVICIO DE APOYO EDUCATIVO (SAE) (GESTIÓN PÚBLICA Y PRIVADA) "]
[null,null,null,"101.F. DURANTE  EL  PRESENTE  AÑO  Y HASTA LA FECHA DE APLICACIÓN DEL  CENSO",null,null,null,null,null,null,null,null,null,null,null,null,null,"106.F. ESTE PRONOEI, ¿HA RECIBIDO ASESORÍA DEL SAEI (SERVICIO DE APOYO"]
[null,null,null,null,"EDUCATIVO 2025, ¿ALGUNOS  DE  LOS  PEC  HAN RECIBIDO O RECIBEN CAPACITACIÓN Y/O",null,null,null,null,null,null,null,null,null,null,null,null,null,"EDUCATIVO INTERNO) EN EL MARCO DE UNA EDUCACIÓN INCLUSIVA?"]
[null,null,null,null,"ACOMPAÑAMIENTO Y/O ASESORIAS ESPECIALIZADAS EN EL MARCO DE LA EDUCACIÓN"]
[null,null,null,null,"INCLUSIVA  POR  PARTE  DEL  SAE EXTERNO  DE LA  UGEL/DRE/GRE, O  ALGUNA  OTRA ",null,null,null,null,null,null,null,null,null,null,null,null,null,"Sí",null,null,null,null,"No  "]
[null,null,null,null,"INSTITUCIÓN  EN  EL  MARCO  DE  UNA  EDUCACIÓN INCLUSIVA?"]
[null,null,null,null,"Marque con una \"X\", una o más opciones"]
[null,null,null,null,null,null,null,null,null,null,null,null,null,null,null,null,null,"107.F. ESTE  PRONOEI, ¿HA RECIBIDO LA VISITA DE ALGÚN PROFESIONAL SAE EXTERNO"]
[null,null,null,null,null,"Educación inclusiva para atender a la diversidad",null,null,null,null,null,null,null,null,null,null,null,null,"DE LA UGEL?"]
[null,null,null,null,null,"Identificación de barreras educativas"]
[null,null,null,null,null,"Implementación de Apoyos Educativos"]
[null,null,null,null,null,"Diseño Universal para el Aprendizaje",null,null,null,null,null,null,null,null,null,null,null,null,"Sí",null,null,null,null,"No  "]
[null,null,null,null,null,"Plan Educativo Personalizado"]
[null,null,null,null,null,"Otros"]
[null,null,null,null,null,"No han recibido",null,null,null,null,null,null,null,null,null,null,null,"108.F. DURANTE EL PRESENTE AÑO Y A LA FECHA DE APLICACIÓN DEL CENSO EDUCATIVO 2025,"]
[null,null,null,null,null,null,null,null,null,null,null,null,null,null,null,null,null,null,"RESPECTO A  LA IMPLEMENTACIÓN  DEL SAE EXTERNO DE LA UGEL, ¿ESTE PRONOEI,"]
[null,null,null,"102.F. ¿QUÉ  ESTRATEGIAS FORMATIVAS VIRTUALES PRIORIZARÍA SOBRE TEMAS DE EDUCACIÓN",null,null,null,null,null,null,null,null,null,null,null,null,null,null,"HA RECIBIDO ALGUNAS DE LAS SIGUIENTES ACCIONES?"]
[null,null,null,null,"INCLUSIVA O ATENCIÓN A LA DIVERSIDAD?",null,null,null,null,null,null,null,null,null,null,null,null,null,"Marque con una \"X\", una o más opciones"]
[null,null,null,null,"Marque con una \"X\", una o más opciones"]
[null,null,null,null,null,null,null,null,null,null,null,null,null,null,null,null,null,null,null,"Sensibilización sobre educación inclusiva para la comunidad educativa."]
[null,null,null,null,null,"Curso virtual tutorado",null,null,null,null,null,null,null,null,null,null,null,null,null,"Asistencia técnica en educación inclusiva al SAEI de su IE"]
[null,null,null,null,null,"Curso virtual autoformativo",null,null,null,null,null,null,null,null,null,null,null,null,null,"Acompañamiento en educación inclusiva al SAEI de su IE"]
[null,null,null,null,null,"Grupo o círculo de interaprendizaje",null,null,null,null,null,null,null,null,null,null,null,null,null,"Asesorías especializadas en educación inclusiva"]
[null,null,null,null,null,"Comunidades profesionales de aprendizaje",null,null,null,null,null,null,null,null,null,null,null,null,null,"Capacitación en educación inclusiva"]
[null,null,null,null,null,"Asesoría personalizada",null,null,null,null,null,null,null,null,null,null,null,null,null,"Soporte sobre la gestión de apoyos educativos"]
[null,null,null,null,null,"Pasantía",null,null,null,null,null,null,null,null,null,null,null,null,null,"Articulación con redes de apoyo promovidas por el SAEE de UGEL"]
[null,null,null,null,null,"Otros"]
[]
[null,null,null,"103.F. DURANTE EL PRESENTE AÑO Y HASTA LA FECHA DE APLICACIÓN DEL CENSO EDUCATIVO 2025,"]
[null,null,null,null,"ESTE PRONOEI, ¿HA INCORPORADO CAMBIOS EN LOS INSTRUMENTOS DE DE GESTIÓN",null,null,null,null,null,null,null,null,null,null,null,null,"109.F. ESTE PRONOEI, ¿TIENE ESTUDIANTES MATRICULADOS EN CONDICIÓN"]
[null,null,null,null,"PARA  IMPLEMENTAR LA EDUCACIÓN INCLUSIVA SEGÚN LAS NORMATIVAS VIGENTES?",null,null,null,null,null,null,null,null,null,null,null,null,null,"CONDICIÓN DE DISCAPACIDAD?"]
[]
[null,null,null,null,"Sí",null,null,null,null,"No  "]
[null,null,null,null,null,null,null,null,null,null,null,null,null,null,null,null,null,null,"Sí","",null,null,null,"No  "]
[]
[null,null,null,"104.F. DURANTE EL PRESENTE AÑO Y HASTA LA FECHA DE APLICACIÓN DEL CENSO EDUCATIVO 2025,"]
[null,null,null,null,"ESTE PRONOEI, ¿HA CONFORMADO EL SERVICIO DE APOYO EDUCATIVO INTERNO (SAEI)?",null,null,null,null,null,null,null,null,null,null,null,null,null,null,"¿Los/as estudiantes con discapacidad cuentan con planes "]
[null,null,null,null,null,null,null,null,null,null,null,null,null,null,null,null,null,null,null,"educativos personalizados (PEP)?"]
[]
[null,null,null,null,"Sí","",null,null,null,null,null,null,null,null,null,null,null,null,null,"Sí","",null,"No  ","",null,null,"No   aplica  ",""]
[]
[null,null,null,null,null,null,null," ¿Cuántas personas lo integran?",null,null,null,null,null,""]
[]
[null,null,null,"105.F. DURANTE EL PRESENTE AÑO Y HASTA LA FECHA DE APLICACIÓN DEL CENSO EDUCATIVO 2025,",null,null,null,null,null,null,null,null,null,null,null,null,null,"110.F. ¿HA RECIBIDO ASISTENCIA Y ORIENTACIÓN PARA LA ATENCIÓN EDUCATIVA"]
[null,null,null,null,"RESPECTO A LA IMPLEMENTACIÓN DEL SAE INTERNO, ESTE SERVICIO/NIVEL EDUCATIVO,",null,null,null,null,null,null,null,null,null,null,null,null,null,"DE ESTUDIANTES CON DISCAPACIDAD DE PARTE DEL EQUIPO DE SERVICIO DE APOYO"]
[null,null,null,null,"¿HA  REALIZADO  ALGUNAS  DE LAS SIGUIENTES ACCIONES?",null,null,null,null,null,null,null,null,null,null,null,null,null,"EDUCATIVO VIRTUAL (SAEV) ?"]
[null,null,null,null,"Marque con una \"X\", una o más opciones"]
[]
[null,null,null,null,null,"Sensibilización sobre educación inclusiva para la comunidad educativa.",null,null,null,null,null,null,null,null,null,null,null,null,"Sí","",null,null,null,"No  "]
[null,null,null,null,null,"Capacitación en educación inclusiva para docentes, directivos y otros agentes educat."]
[null,null,null,null,null,"Acompañamiento a los docentes (visitas, grupos de interaprendizaje y asesorías)"]
[null,null,null,null,null,"Asesorías al PEC y otros agentes educativos."]
[null,null,null,null,null,"Orientación a las familias."]
[null,null,null,null,null,"Coordinación y articulación con otros servicios de apoyo, comités de gestión escolar."]
[null,null,null,null,null,"Otro"]
[]
[]
[]
[]
[]
[]
[]
["Dias"]
[1]
[2]
[3]
[4]
[5]
[6]
[7]
[8]
[9]
[10]
[11]
[12]
[13]
[14]
[15]
[16]
[17]
[18]
[19]
[20]
[21]
[22]
[23]
[24]
[25]
[26]
[27]
[28]
[29]
[30]
[31]
[]
["Meses"]
["01: Enero"]
["02: Febrero"]
["03: Marzo"]
["04: Abril"]
["05: Mayo"]
["06: Junio"]
["07: Julio"]
["08: Agosto"]
["09: Septiembre"]
["10: Octubre"]
["11: Noviembre"]
["12: Diciembre"]
["01: Enero"]
["02: Febrero"]
[]
["LENGUAS ORIGINARIAS"]
["0100: Castellano"]
["0200: Achuar"]
["0300: Aimara"]
["0400: Amahuaca"]
["0500: Arabela"]
["0600: Asháninka"]
["0610: Asheninka"]
["0700: Awajún"]
["0800: Bora"]
["0900: Kapanawa"]
["1000: Cashinahua"]
["1100: Kawki"]
["1200: Chamikuro"]
["1300: Ese eja"]
["1400: Harakbut"]
["1500: Iñapari"]
["1600: Ikuitu"]
["1700: Iskonawa"]
["1800: Jaqaru"]
["1900: Kakataibo"]
["2000: Kakinte (caquinte)"]
["2110: Kandozi (Chapra)"]
["2120: Kandozi (Kandozi)"]
["2200: Kukama-Kukamiria"]
["2300: Madija (culina)"]
["2400: Maijiki"]
["2500: Matsés"]
["2600: Matsigenka"]
["2700: Munichi"]
["2800: Murui-muinanɨ"]
["2900: Matsigenka-montetokunirira"]
["3000: Nomatsigenga"]
["3100: Ocaina"]
["3200: Omagua"]
["3310: Quechua amazónico (Kichwa)"]
["3321: Quechua central (Ancash)"]
["3322: Quechua central (Huánuco)"]
["3323: Quechua central (Wanka)"]
["3324: Quechua central (Pasco)"]
["3331: Quechua norteño (Cajamarca)"]
["3332: Quechua norteño (Inkawasi kañaris)"]
["3341: Quechua sureño (Chanka)"]
["3342: Quechua sureño (Collao)"]
["3400: Resígaro"]
["3500: Secoya"]
["3600: Sharanahua"]
["3700: Shawi"]
["3800: Shipibo-Konibo"]
["3900: Shiwilu"]
["4000: Taushiro"]
["4100: Ticuna"]
["4200: Urarina"]
["4300: Wampis"]
["4400: Yagua"]
["4500: Yaminahua"]
["4600: Yanesha"]
["4700: Yine"]
["4800: Nahua"]
["4900: Lengua de señas peruana "]
["LENGUAS EXTRANJERAS"]
["5100: Alemán"]
["5200: Ingles"]
["5300: Italiano"]
["5400: Japones"]
["5500: Portugués"]
["5600: Ruso"]
["5700: Francés"]
["5800: Otra"]

{"sheet":"C200","index":2,"n_rows":73,"n_cols":21,"rows_kept":73,"cut":false,"hidden":false,"merged":[[64,4,64,5],[58,4,58,5],[44,4,44,5],[13,2,15,3],[11,17,11,18],[10,2,12,3],[10,4,12,4],[30,11,30,12],[20,2,21,3],[20,4,21,4],[20,5,21,5],[20,6,21,6],[22,2,24,3],[11,19,11,20],[10,5,11,6],[11,7,11,8],[11,9,11,10],[11,11,11,12],[11,13,11,14],[11,15,11,16],[6,2,6,20],[1,4,1,17],[2,4,2,17],[50,13,50,14],[50,15,50,16],[49,2,51,4],[49,6,51,6],[49,7,50,8],[50,9,50,10],[50,11,50,12],[30,13,30,14],[30,15,30,16],[29,2,31,4],[29,6,31,6],[29,7,30,8],[30,9,30,10]]}
[null,""]
[null,"",null,null,"CENSO EDUCATIVO 2025"]
[null,"",null,null,"MATRÍCULA, PROMOTORES(AS) Y MATERIALES EDUCATIVOS"]
[]
[]
[]
[null,null,"200. MATRÍCULA Y SECCIONES  (Para PRONOEI Públicos y Privados)"]
[]
[null,null,201,"MATRÍCULA TOTAL POR EDADES, SEGÚN TURNO DE ENSEÑANZA"]
[]
[null,null,"VARIABLE",null,"TURNO","TOTAL",null,"EDADES"]
[null,null,null,null,null,null,null,0,null,1,null,2,null,3,null,4,null,5,null,"6 y más"]
[null,null,null,null,null,"H","M","H","M","H","M","H","M","H","M","H","M","H","M","H","M"]
["00",null,"MATRÍCULA",null,"TOTAL",{"$f":"H14+J14+L14+N14+P14+R14+T14","v":0},0,{"$f":"SUM(H15:H16)","v":0},0,0,0,0,0,0,0,0,0,{"$f":"SUM(R15:R16)","v":0},0,{"$f":"SUM(T15:T16)","v":0},0]
["01",null,null,null,"Mañana",0,0]
["02",null,null,null,"Tarde",0,0]
[]
[]
[null,null,202,"SECCIONES POR EDADES, SEGÚN TURNO DE ENSEÑANZA"]
[]
[null,null,"VARIABLE",null,"TURNO",null,"TOTAL","EDADES"]
[null,null,null,null,null,null,null,0,1,2,3,4,"5 y más"]
["00",null,"SECCIONES",null,"TOTAL",null,{"$f":"SUM(H23:M23)","v":0},{"$f":"SUM(H24:H25)","v":0},{"$f":"SUM(I24:I25)","v":0},0,0,0,0]
["01",null,null,null,"Mañana",null,{"$f":"SUM(H24:M24)","v":0}]
["02",null,null,null,"Tarde",null,{"$f":"SUM(H25:M25)","v":0}]
[]
[]
[null,null,203,"MATRÍCULA TOTAL POR GRADO DE ESTUDIO Y SEXO, SEGÚN TIPO DE DISCAPACIDAD"]
[]
[null,null,"TIPO DE DISCAPACIDAD",null,null,null,"Elija una opción","TOTAL",null,"EDADES"]
[null,null,null,null,null,null,null,null,null,3,null,4,null,5,null,"6 y más"]
[null,null,null,null,null,{"$f":"COUNTIF(G34:G45,\"SI\") + COUNTIF(G34:G45,\"NO\")","v":0},null,"H","M","H","M","H","M","H","M","H","M"]
["00",null,"TOTAL",null,null,null,"SN",{"$f":"SUM(H34:H46)","v":0},{"$f":"SUM(I34:I46)","v":0},{"$f":"SUM(J34:J46)","v":0},{"$f":"SUM(K34:K46)","v":0},0,0,0,0,{"$f":"SUM(P34:P46)","v":0},0]
["01",null,"Discapacidad Intelectual - Leve",null,null,null,null,{"$f":"J34+L34+N34+P34","v":0},{"$f":"K34+M34+O34+Q34","v":0}]
["02",null,"Discapacidad Intelectual - Moderada",null,null,null,null,{"$f":"J35+L35+N35+P35","v":0},{"$f":"K35+M35+O35+Q35","v":0}]
["03",null,"Discapacidad Auditiva - Hipoacusia",null,null,null,null,0,0]
["04",null,"Discapacidad Auditiva - Sordera",null,null,null,null,0,0]
["05",null,"Discapacidad Visual - Baja Visión",null,null,null,null,0,0]
["06",null,"Discapacidad Visual - Ceguera",null,null,null,null,0,0]
["07",null,"Discapacidad Física o Motora",null,null,null,null,0,0]
["08",null,"TEA - Requiere de apoyo (Nivel 1)",null,null,null,null,0,0]
["09",null,"TEA - Requiere de apoyo notable  (Nivel 2)",null,null,null,null,0,0]
["10",null,"TEA - Requiere de apoyo muy notable  (Nivel 3)",null,null,null,null,0,0]
["11",null,"Sordoceguera",null,null,null,null,0,0]
["12",null,"Otra discapacidad",null,null,null,null,{"$f":"J45+L45+N45+P45","v":0},{"$f":"K45+M45+O45+Q45","v":0}]
["13"]
[]
[null,null,204,"MATRÍCULA TOTAL POR GRADO DE ESTUDIO Y SEXO, SEGÚN OTRAS CONDICIONES DETECTADAS"]
[]
["SI",null,"OTRAS CONDICIONES DETECTADAS",null,null,null,"Elija una opción","TOTAL",null,"EDADES"]
["NO",null,null,null,null,null,null,null,null,3,null,4,null,5,null,"6 y más"]
[null,null,null,null,null,{"$f":"COUNTIF(G54:G72,\"SI\") + COUNTIF(G54:G72,\"NO\")","v":0},null,"H","M","H","M","H","M","H","M","H","M"]
["00",null,"TOTAL",null,null,null,"SN",{"$f":"SUM(H54:H73)","v":0},0,{"$f":"SUM(J54:J72)","v":0},0,0,0,0,0,0,0]
["01",null,"Retraso global del desarrollo",null,null,null,null,{"$f":"J54+L54+N54+P54","v":0},{"$f":"K54+M54+O54+Q54","v":0}]
["02",null,"Trastorno por Déficit de Atención - TDAH",null,null,null,null,{"$f":"J55+L55+N55+P55","v":0},{"$f":"K55+M55+O55+Q55","v":0}]
["03",null,"Trastornos específicos del aprendizaje - Dislexia",null,null,null,null,0,0]
["04",null,"Trastornos específicos del aprendizaje - Discalculia",null,null,null,null,0,0]
["05",null,"Trastornos específicos del aprendizaje - Disgrafia",null,null,null,null,0,0]
["06",null,"TEDA - Otros",null,null,null,null,0,0]
["07",null,"Trastornos de salud mental - Esquizofrenia (E)",null,null,null,null,0,0]
["08",null,"Trastornos de salud mental - Depresión (D)",null,null,null,null,0,0]
["09",null,"Trastornos de salud mental - Ansiedad (A)",null,null,null,null,0,0]
["10",null,"Trastornos de personalidad",null,null,null,null,0,0]
["11",null,"Otros",null,null,null,null,0,0]
["12",null,"Enfermedades Raras",null,null,null,null,0,0]
["13",null,"Talla Baja",null,null,null,null,0,0]
["14",null,"Estudiantes - Menos de 15 días de hospitalización",null,null,null,null,0,0]
["15",null,"Estudiantes - De 15 a 30 días de hospitalización",null,null,null,null,0,0]
["16",null,"Estudiantes - Más de 30 días de hospitalización",null,null,null,null,0,0]
["17",null,"Talento",null,null,null,null,0,0]
["18",null,"Superdotación",null,null,null,null,0,0]
["19",null,"Otros condiciones relacionadas",null,null,null,null,{"$f":"J72+L72+N72+P72","v":0},{"$f":"K72+M72+O72+Q72","v":0}]
["20"]

{"sheet":"C300","index":3,"n_rows":165,"n_cols":43,"rows_kept":165,"cut":false,"hidden":false,"merged":[[1,8,1,14],[2,8,2,14],[6,6,6,16],[13,31,16,31],[13,25,16,25],[13,26,15,27],[14,20,14,24],[13,20,13,24],[13,28,16,28],[13,29,16,29],[13,30,16,30],[13,17,16,17],[12,26,12,27],[15,24,16,24],[15,20,15,23],[12,20,12,24],[13,6,16,6],[13,15,16,15],[13,18,16,18],[13,13,16,13],[13,19,16,19],[12,10,12,11],[13,10,14,11],[13,14,16,14],[13,16,16,16],[13,12,16,12]]}
[]
[null,null,null,null,null,null,null,null,"CENSO EDUCATIVO 2025"]
[null,null,null,null,null,null,null,null,"MATRÍCULA, PROMOTORES(AS) Y MATERIALES EDUCATIVOS"]
[]
["PERSONAL",{"$f":"$N$10","v":0}]
[]
["COORDINADOR",null,null,null,null,null,"300. PROMOTORES(AS) EDUCATIVOS(AS) COMUNITARIOS(AS) (Para PRONOEI Públicos y Privados)"]
["PROMOTOR",null,null,null,null,null,"Utilice las tablas de código disponibles en la cédula borrador."]
[]
["GESTIÓN",{"$f":"IF(OR('C100'!K47=\"X\",'C100'!R47=\"X\"),1,IF('C100'!Y47=\"X\",3,\"\"))","v":""},null,null,null,null,null,null,"Anote el total de Promotoras(es) educativa comunitaria"]
[]
["LENGUA ORIGINARIA",{"$f":"COUNTIF(P18:P22,\"SI\")","v":0},null,null,5]
[null,null,null,null,null,null,null,301.10000000000002,301.2,301.3,302,null,303,304,305,306,307,308,309,310,311,null,null,null,null,312,313,null,314,315,315.10000000000002,315.2]
[null,null,null,null,null,null,"Nº",null,null,null,"Documento de identidad",null,"Edad","Sexo","Lengua\nmaterna","¿Domina una lengua\noriginaria?\nSí - No","Lengua originaria\nque domina ","Máximo nivel\neducativo\nalcanzado","¿En qué tipo de Institución\nobtuvo su formación pedagógica?","Especialidad pedagógica o técnica que ha estudiado","¿ Ha sido capacitado en el uso de los materiales educativos?",null,null,null,null,"Vive en la comunidad donde funciona el PRONOEI","Tiempo de experiecia como PEC",null,"Nro. horas de capacitación recibidas en 2023","¿Atiende a estudiantes con NEE asociadas a discapacidad?","¿Presenta alguna discapacidad?","Solo si respondió SI en la pregunta 315.1 ¿Cúal es el tipo de discapacidad?"]
["302.1 Tipo de documento de Identidad",null,null,null,null,null,null,"Apellido Paterno","Apellido Materno","Nombres",null,null,null,null,null,null,null,null,null,null,"Marque con una “X”, según corresponda"]
["01 : DNI","Exp1","Exp2","Exp3","Exp4",null,null,null,null,null,302.10000000000002,302.2,null,null,null,null,null,null,null,null," SI",null,null,null,"NO"]
["02 : Carnet Ext.","Corr","Tnivel","Duplex","Fmt",null,null,null,null,null,"Tipo","Número",null,null,null,null,null,null,null,null,"MINEDU","DRE/UGEL","OTRO"," Especificar",null,null,"Años","Meses"]
["03 : Pasaporte",1,{"$f":"IF($R18=\"\",0,IF(VALUE(LEFT($R18,2))<4,1,IF(OR(LEFT($R18,2)=\"04\",LEFT($R18,2)=\"05\",LEFT($R18,2)=\"06\" ),2,IF(VALUE(LEFT($R18,2))>6,3,9))))","v":0},{"$f":"IF(L18<>\"\",COUNTIF($L$18:$L$22,$L18),0)","v":0},{"$f":"IF(G18<>\"\",1,0)","v":0},null,{"$f":"IF(B18<=$N$10,B18,\"\")","v":""},null,null,null,null,null,null,null,null,null,null,null,null,null,null,null,null,null,null,null,null,null,null,null,null,null,"","","","","","","","","","",""]
[null,2,{"$f":"IF($R19=\"\",0,IF(VALUE(LEFT($R19,2))<4,1,IF(OR(LEFT($R19,2)=\"04\",LEFT($R19,2)=\"05\",LEFT($R19,2)=\"06\" ),2,IF(VALUE(LEFT($R19,2))>6,3,9))))","v":0},{"$f":"IF(L19<>\"\",COUNTIF($L$18:$L$22,$L19),0)","v":0},{"$f":"IF(G19<>\"\",1,0)","v":0},null,{"$f":"IF(B19<=$N$10,B19,\"\")","v":""},null,null,null,null,null,null,null,null,null,null,null,null,null,null,null,null,null,null,null,null,null,null,null,null,null,"","","","","","","","","","",""]
["304. Sexo",3,{"$f":"IF($R20=\"\",0,IF(VALUE(LEFT($R20,2))<4,1,IF(OR(LEFT($R20,2)=\"04\",LEFT($R20,2)=\"05\",LEFT($R20,2)=\"06\" ),2,IF(VALUE(LEFT($R20,2))>6,3,9))))","v":0},{"$f":"IF(L20<>\"\",COUNTIF($L$18:$L$22,$L20),0)","v":0},{"$f":"IF(G20<>\"\",1,0)","v":0},null,{"$f":"IF(B20<=$N$10,B20,\"\")","v":""},null,null,null,null,null,null,null,null,null,null,null,null,null,null,null,null,null,null,null,null,null,null,null,null,null,"","","","","","","","","","",""]
["Hombre",4,{"$f":"IF($R21=\"\",0,IF(VALUE(LEFT($R21,2))<4,1,IF(OR(LEFT($R21,2)=\"04\",LEFT($R21,2)=\"05\",LEFT($R21,2)=\"06\" ),2,IF(VALUE(LEFT($R21,2))>6,3,9))))","v":0},{"$f":"IF(L21<>\"\",COUNTIF($L$18:$L$22,$L21),0)","v":0},{"$f":"IF(G21<>\"\",1,0)","v":0},null,{"$f":"IF(B21<=$N$10,B21,\"\")","v":""},null,null,null,null,null,null,null,null,null,null,null,null,null,null,null,null,null,null,null,null,null,null,null,null,null,"","","","","","","","","","",""]
["Mujer",5,{"$f":"IF($R22=\"\",0,IF(VALUE(LEFT($R22,2))<4,1,IF(OR(LEFT($R22,2)=\"04\",LEFT($R22,2)=\"05\",LEFT($R22,2)=\"06\" ),2,IF(VALUE(LEFT($R22,2))>6,3,9))))","v":0},{"$f":"IF(L22<>\"\",COUNTIF($L$18:$L$22,$L22),0)","v":0},{"$f":"IF(G22<>\"\",1,0)","v":0},null,{"$f":"IF(B22<=N$10,B22,\"\")","v":""},null,null,null,null,null,null,null,null,null,null,null,null,null,null,null,null,null,null,null,null,null,null,null,null,null,"","","","","","","","","","",""]
[null,null,null,null,null,null,null,null,null,null,"",null,"","","","","","","","","","","","","","","","",null,null,null,"","","","","","","","","","",""]
["305. Lengua Materna",null,null,null,null,null,null,null,null,"",null,null,"","","","","","","","","","","","","","","","",null,null,null,"","","","","","","","","","","",""]
["0100: Castellano",null,null,null,null,null,null,null,null,"",null,null,"","","","","","","","","","","","","","","","",null,null,null,"","","","","","","","","","","",""]
["0200: Achuar",null,null,null,null,null,null,null,null,"",null,null,"","","","","","","","","","","","","","","","",null,null,null,"","","","","","","","","","","",""]
["0300: Aimara",null,null,null,null,null,null,null,null,"",null,null,"","","","","","","","","","","","","","","","",null,null,null,"","","","","","","","","","","",""]
["0400: Amahuaca"]
["0500: Arabela"]
["0600: Ashaninka"]
["0610: Asheninka"]
["0700: Awajún"]
["0800: Bora"]
["0900: Kapanawa"]
["1000: Cashinahua"]
["1100: Kawki"]
["1200: Chamicuro"]
["1300: Ese eja"]
["1400: Harakbut"]
["1500: Iñapari"]
["1600: Ikitu"]
["1700: Iskonawa"]
["1800: Jaqaru"]
["1900: Kakataibo"]
["2000: Kakinte"]
["2110: Kandozi-chapra (chapra)"]
["2120: Kandozi-chapra (kandozi)"]
["2200: Kukama kukamiria"]
["2300: Madija"]
["2400: Maijiki"]
["2500: Matsés"]
["2600: Matsigenka"]
["2700: Muniche"]
["2800: Murui-muinani"]
["2900: Matsigenka-montetokunirira"]
["3000: Nomatsigenga"]
["3100: Ocaina"]
["3200: Omagua"]
["3310: Quechua amazónico (Kichwa)"]
["3321: Quechua central (Ancash)"]
["3322: Quechua central (Huánuco)"]
["3323: Quechua central (Wanka)"]
["3324: Quechua central (Pasco)"]
["3331: Quechua norteño (Cajamarca)"]
["3332: Quechua norteño (Inkawasi Kañaris)"]
["3341: Quechua sureño (Chanka)"]
["3342: Quechua sureño (Collao)"]
["3400: Resígaro"]
["3500: Secoya"]
["3600: Sharanahua"]
["3700: Shawi"]
["3800: Shipibo-Konibo"]
["3900: Shiwilu"]
["4000: Taushiro"]
["4100: Ticuna"]
["4200: Urarina"]
["4300: Wampis"]
["4400: Yagua"]
["4500: Yaminahua"]
["4600: Yanesha"]
["4700: Yine"]
["4800: Nahua"]
["4900: Lengua de señas peruana"]
["5100: Alemán"]
["5200: Inglés"]
["5300: Italiano"]
["5400: Japonés"]
["5500: Portugués"]
["5600: Ruso"]
["5700: Francés"]
["5800: Otra lengua extranjera"]
[]
["307. Lengua Originaria"]
["Utilice los códigos de lengua de la tabla 203"]
[]
["308. Máximo Nivel Educativo Alcanzado"]
["01: Pedag.Concluidos con título"]
["02: Pedag.Concluidos sin título"]
["03: Pedag.No concluidos"]
["04: No Pedag.Concluidos con título"]
["05: No Pedag.Concluidos sin título"]
["06: No Pedag.No concluidos"]
["07: Secundaria concluida"]
["08: Secundaria no concluida"]
["09: Primaria concluida"]
["10: Primaria no concluida"]
["11: Sin Nivel"]
[]
["309. Tipo de institución"]
["01: IESP (Público)"]
["02: IESP (Privado)"]
["03: Universidad Privada"]
["04: Universidad Pública"]
["05: No tuvo formación superior"]
[]
["310. Especialidad pedagógica o técnica que ha estudiado"]
["01: Educación Inicial"]
["02: Educación Primaria"]
["03: Educación Secundaria"]
["04: Otros estudios pedagógicos"]
["05: Enfermería"]
["06: Secretariado"]
["07: Computación e Informática"]
["08: Otros estudios técnicos"]
[]
["311. ¿Ha sido capacitado en el uso de los materiales?"]
["Marcar según corresponda"]
[]
["312. Vive en la comunidad donde funciona el PRONOEI"]
["Responda SÍ o NO, según corresponda"]
[]
["313. Tiempo de experiencia en el PEC"]
["Anote el tiempo de experiencia en el cargo,"]
["expresado en años calendario cumplidos"]
[]
["314. Nº horas de capacitación recibidas en el año 2018"]
["Anote el número de horas de capacitación para"]
["el desarrollo de sus actividades,"]
["recibidas durante todo el año 2018"]
[]
["Opción"]
["SI"]
["NO"]
[]
["315.2 ¿Cuál es el tipo de discapacidad?"]
["01: Auditiva"]
["02: Visual"]
["03: Física o Motora"]
["04: Otras"]
[]
["316.3 Asistencia Técnica"]
["01: Uso de cuadernos"]
["02: TICs"]
["03: Inclusión financiera"]
["04: Prevención de la violencia"]
["05: Otro"]
["06: Sin asistencia"]
[]
["316.3 Estudios EIB"]
["01: Doctorado"]
["02: Maestria"]
["03: Segunda especialidad"]
["04: Especialización"]
["05: Actualización"]
["06: Otros"]

{"sheet":"C317","index":4,"n_rows":30,"n_cols":31,"rows_kept":30,"cut":false,"hidden":false,"merged":[[6,5,6,16],[2,5,2,16],[1,5,1,16],[18,12,19,12],[18,5,19,5],[18,6,19,6],[18,7,19,7],[18,8,18,10],[17,8,17,10]]}
[]
[null,null,null,null,null,"CENSO EDUCATIVO 2025"]
[null,null,null,null,null,"MATRÍCULA, PROMOTORES(AS) Y MATERIALES EDUCATIVOS"]
[]
[]
[]
[null,null,null,null,null,"PROMOTORES(AS) EDUCATIVOS(AS) COMUNITARIOS(AS) QUE DOMINAN LENGUA ORIGINARIA (Solo para Programas Públicos) "]
[]
["GESTIÓN",null,null,null,null,null,"317. SEGÚN LO ANOTADO EN LA PREGUNTA 306, ¿CUENTA CON PROMOTORES(AS) EDUCATIVOS(AS"]
[null,null,null,null,null,null,"  COMUNITARIOS(AS), QUE DOMINE UNA LENGUA ORIGINARIA?"]
[null,null,null,null,null,null,"Hacer click en el botón [Verificar] para revisar los docentes que dominan una lengua originaria"]
[{"$f":"IF(OR('C100'!K47=\"X\",'C100'!R47=\"X\"),1,IF('C100'!Y47=\"X\",3,\"\"))","v":""}]
[null,null,null,null,null,null,null,"Sí   ",null,null,null,null,"¿Cuántos?"]
[]
[null,null,null,null,null,null,null,"No  ",null,null,null,null,"Pase a la sección 400."]
[]
[]
[null,null,null,null,null,null,null,null,317.10000000000002,null,null,317.2,317.3,317.39999999999998,317.5,317.60000000000002,317.7]
[null,null,null,null,null,"Nº","Nº de fila registrado en la pregunta 306","Documento de Identidad","Conocimiento de\nlengua originaria",null,null,"¿Cuenta con estudios en Educación Intercultural Bilingüe?","Solo si respondió \"SÍ\"  en la pregunta 315.2 ¿Cuál fue el tipo de estudios en EIB?","¿Ha recibido capacitación en EIB?","¿El PEC enseña en lengua originaria?","¿El material recibido coincide con la lengua que enseña?","¿En la actualidad el PEC se encuentra en el Registro de Docentes Bilingües?"]
["317.3 ¿Cuál fue el tipo de estudios en EIB?","Corr","Gest","Fmt",null,null,null,null,"Habla","Lee","Escribe"," SI - NO",null," SI - NO"," SI - NO"," SI - NO"," SI - NO"]
["01: Doctorado",1,{"$f":"$A$12","v":""},{"$f":"IF(F21<>\"\",1,0)","v":0},null,{"$f":"IF(AND($B21<=$N$13,$C21=1),$B21,\"\")","v":""},null,null,null,null,null,null,null,null,null,null,null,"","","","","","","","","","","","","",""]
["02: Maestría",{"$f":"B21+1","v":2},{"$f":"$A$12","v":""},{"$f":"IF(F22<>\"\",1,0)","v":0},null,{"$f":"IF(AND($B22<=$N$13,$C22=1),$B22,\"\")","v":""},null,null,null,null,null,null,null,null,null,null,null,"","","","","","","","","","","","","",""]
["03: Segunda especialidad",{"$f":"B22+1","v":3},{"$f":"$A$12","v":""},{"$f":"IF(F23<>\"\",1,0)","v":0},null,{"$f":"IF(AND($B23<=$N$13,$C23=1),$B23,\"\")","v":""},null,null,null,null,null,null,null,null,null,null,null,"","","","","","","","","","","","","",""]
["04: Especialización",4,{"$f":"$A$12","v":""},{"$f":"IF(F24<>\"\",1,0)","v":0},null,{"$f":"IF(AND($B24<=$N$13,$C24=1),$B24,\"\")","v":""},null,null,null,null,null,null,null,null,null,null,null,"","","","","","","","","","","","","",""]
["05: Actualización",null,null,null,null,null,null,""]
["06: Otro"]
[]
[]
["SI"]
["NO"]

{"sheet":"C400","index":5,"n_rows":98,"n_cols":12,"rows_kept":98,"cut":false,"hidden":false,"merged":[[1,5,1,9],[2,5,2,9],[14,9,15,11],[16,9,17,9],[16,10,17,10],[16,11,17,11],[14,5,17,5],[14,7,16,7],[14,8,16,8],[6,2,6,12],[97,6,97,10],[14,3,17,3],[28,3,29,3],[18,3,27,3],[29,4,29,6],[67,9,67,11],[50,9,55,11],[44,2,44,12],[59,2,59,12],[80,8,80,11]]}
[]
[null,null,null,null,null,"CENSO EDUCATIVO 2025"]
[null,null,null,null,null,"MATRÍCULA, PROMOTORES(AS) Y MATERIALES EDUCATIVOS"]
[]
[]
[]
[null,null,"400. MATERIALES EDUCATIVOS (Solo para gestión pública)"]
[]
["GESTIÓN",null,null,"401. ¿RECIBIÓ MATERIALES CORRESPONDIENTES A LA DOTACIÓN 2025?"]
[{"$f":"IF(OR(UPPER('C100'!K47)=\"X\",UPPER('C100'!R47)=\"X\"),\"X\",\"\")","v":""}]
[{"$f":"IF(UPPER('C100'!Y47)=\"X\",\"X\",\"\")","v":""},null,null,"Sí  ",null,"No  ","",null,"Pase a la sección 500"]
[]
[null,null,null,"402. MATERIALES EDUCATIVOS"]
[]
[null,null,null,"Beneficiarios",null,"Material Educativo",null,"¿Recibio los materiales?","¿En qué fecha recibió los materiales?","Cantidad de Material"]
[]
[null,null,null,null,null,null,{"$f":"COUNTIF(H19:H30,\"NO\")","v":0},null,null,"Total Recibido","Material Sobrante","Material Faltante"]
[null,null,null,null,null,null,{"$f":"COUNTIF(H19:H30,\"SI\")+COUNTIF(H19:H30,\"NO\")","v":0}," SI - NO","Día/Mes/Año"]
["01",null,null,"2024\n\nNIÑOS Y NIÑAS\nDE 3 AÑOS","Juego de vasos lógicos (3 juegos de 8 vasos c/u)"]
["02",null,null,null,"Vehículo de madera para jalar (1 unidad)"]
["03",null,null,null,"Juego de aros para ensartar (2 Juegos con soporte y 6 aros c/u)"]
["04",null,null,null,"Juego de cubos sensoriales (1 juego x 12 pzs)"]
["05",null,null,null,"Juego de pañuelos de colores (1 juego de 6 pzs)"]
["06",null,null,null,"Juego de tres muñecos de tela (1 juego de 3 pzs)"]
["07",null,null,null,"Juego de canastas (1 juego x 6 pzs)"]
["08",null,null,null,"Juego de piezas para enroscar (1 juego de 8 pzs )"]
["09",null,null,null,"Kit de 6 animales de peluche (1 juego de 6 pzs)"]
["10",null,null,null,"Kit de bloques de construcción (1 juego de 86 pzs y envase)"]
["11",null,null,"2025\nNIÑOS Y NIÑAS \nDE 4 Y 5 AÑOS","Material impreso para niños y niñas de 4 años"]
["12",null,null,null,"Material impreso para niños y niñas de 5 años"]
[null,null,null,null,null,null,null,{"$f":"COUNTIF(H19:H30,\"SI\")+COUNTIF(H19:H30,\"NO\")","v":0}]
[null,null,null,"403. EL MATERIAL IMPRESO RECIBIDO, ¿CORRESPONDE A LA LENGUA DE LOS ESTUDIANTES?"]
[]
[null,null,null,"Sí  ",null,"No  "]
[]
[null,null,null,"404. EL MATERIAL IMPRESO RECIBIDO, ¿SE ENCUENTRA EN EL AULA?"]
[]
[null,null,null,"Sí  ",null,"No  "]
[]
[null,null,null,"405. LOS MATERIALES EDUCATIVOS (IMPRESO Y CONCRETO), ¿SE ENCUENTRAN AL ALCANCE DE LOS NIÑOS Y NIÑAS?"]
[]
[null,null,null,"Sí  ",null,"No  "]
[]
[]
[null,null,"500. OTROS RECURSOS DISPONIBLES PARA LA ENSEÑANZA (Para Pronoei Públicas y Privadas)"]
[]
[null,null,null,"501. ¿QUÉ EDADES ATENDIDAS CUENTAN CON UNA BIBLIOTECA DE AULA? DETALLE EL NÚMERO DE EJEMPLARES (LIBROS QUE LA CONFORMAN)."]
[]
[null,null,null,null,null,null,null,"Nº Total de"]
[null,null,null,null,null,"Edad atendida",null,"Ejemplares"]
[null,null,null,null,null," 0 años",null,null,null,"Las bibliotecas de aula están constituidas por libros, láminas y otros materiales didácticos similares, puestos al alcance de los estudiantes en el aula."]
[null,null,null,null,null," 1 año"]
[null,null,null,null,null," 2 años"]
[null,null,null,null,null," 3 años"]
[null,null,null,null,null," 4 años"]
[null,null,null,null,null," 5 años y más"]
[null,null,null,null,null," NINGÚNA EDAD",null,{"$f":"SUM(H51:H56)","v":0}]
[]
[]
[null,null,"600. PSICOMOTRICIDAD"]
[]
[null,null,null,"601. DURANTE EL AÑO 2024, EN ESTE PRONOEI, ¿SE FOMENTÓ LA REALIZACIÓN DE ACTIVIDADES FÍSICAS O DEPORTE,"]
[null,null,null,"CON LA FINALIDAD DE PRIORIZAR EL CUIDADO DEL ESTUDIANTE Y SU BIENESTAR INTEGRAL? "]
[null,null,null,null,null,null,"Marque con una “X”, una o más opciones"]
[null,null,null,"Sí  ",null,null,null,"Actividades de movimiento"]
[null,null,null,null,null,null,null,"Actividades artístico culturales"]
[null,null,null,null,null,null,null,"Actividades complementarias de encuentro con la comunidad educativa"]
[null,null,null,"No  ","",null,null,"Otras actividades"]
[]
[]
[null,null,null,"602. ¿ESTE PRONOEI CUENTA CON UNA GUÍA Y MATERIALES PARA LAS ACTIVIDADES DE PSICOMOTROCIDAD?"]
[]
[null,null,null,"Sí  ",null,"No  "]
[]
[null,null,null,null,null,null,null,"Nro. de horas"]
[null,null,null,null,null,"¿Cuántas horas a la semana?"]
[]
[null,null,null,null,null,"¿Las actividades de psicomotrocidad donde se realizan?"]
[null,null,null,null,null,null,null,"Patio"]
[null,null,null,null,null,null,null,"Aula de psicomotrocidad"]
[null,null,null,null,null,null,null,"Otro"]
[]
[]
[null,null,null,"603. ESTE PRONOEI, ¿HA INCORPORADO EN SU PLAN ANUAL DE TRABAJO ACTIVIDADES PARA LA PROMOCIÓN"]
[null,null,null,"DE VIDA ACTIVA, CREATIVA Y SALUDABLE?"]
[]
[null,null,null,"Sí  ",null,"No  ",null,null,"Pase a la sección 700"]
[]
[]
[]
[null,null,null,"604. ¿QUÉ ACTIVIDADES DESARROLLA ESTE PRONOEI DURANTE EL PRESENTE AÑO, ORIENTADAS A LA PROMOCIÓN DE UNA VIDA ACTIVA,"]
[null,null,null,"CREATIVA Y SALUDABLE:"]
[null,null,null,null,"Marque con una “X”, una o más opciones"]
[null,null,null,null,null,"10 min de actividad física diaria"]
[null,null,null,null,null,"Pausa activa"]
[null,null,null,null,null,"Juego aprendo y me siento saludable"]
[null,null,null,null,null,"Actividad familiar (carrera familiar, maratón, caminata, pasacalle, etc.)"]
[null,null,null,null,null,"Otro - especificar"]

{"sheet":"C700","index":6,"n_rows":97,"n_cols":26,"rows_kept":97,"cut":false,"hidden":false,"merged":[[1,6,1,24],[2,6,2,24],[12,17,13,20],[12,21,12,26],[14,15,21,16],[14,17,21,20],[18,7,18,9],[18,10,18,12],[19,7,20,7],[19,8,20,9],[19,10,20,11],[19,12,20,12],[21,8,21,9],[21,10,21,11],[12,15,13,16],[6,1,6,27],[22,17,29,20],[23,10,23,11],[24,8,24,9],[24,10,24,11],[25,8,25,9],[25,10,25,11],[22,8,22,9],[22,10,22,11],[22,15,29,16],[58,5,58,7],[71,16,72,19],[71,20,71,25],[72,9,72,12],[72,22,72,23],[70,5,71,6],[80,9,80,12],[74,9,74,12],[74,20,74,21],[74,22,74,23],[75,9,75,12],[75,20,75,21],[75,22,75,23],[76,9,76,12],[77,9,77,12],[78,9,78,12],[79,9,79,12],[25,3,25,6],[73,9,73,12],[73,20,73,21],[73,22,73,23],[58,8,58,9],[58,10,58,11],[70,8,71,8],[70,9,71,12],[30,17,36,20],[32,15,34,16],[54,2,57,4],[54,5,57,7],[54,8,57,9],[54,10,57,11],[54,12,57,12],[58,2,58,4]]}
[""]
["",null,null,null,null,null,"CENSO EDUCATIVO 2025"]
[null,null,null,null,null,null,"MATRÍCULA, PROMOTORES(AS) Y MATERIALES EDUCATIVOS"]
[]
[]
[]
[null,"700. GESTIÓN DE RIESGO DE DESASTRES"]
[]
[null,null,"701. EN EL PRESENTE AÑO, ESTEPRONOEI, ¿HA INCORPORADO ACCIONES",null,null,null,null,null,null,null,null,null,null,null,null,"702. SOBRE LA GESTIÓN DEL RIESGO DE DESASTRES EN ESTE PRONOEI,"]
[null,null,null,"ESTRATÉGICAS Y OPERATIVAS EN GESTIÓN DEL RIESGO DE DESASTRES Y SEGURIDAD Y",null,null,null,null,null,null,null,null,null,null,null,null,"ATIENDA LAS SIGUIENTES PREGUNTAS:"]
[null,null,null,"DEFENSA NACIONAL EN SUS INSTRUMENTOS DE GESTIÓN VIGENTES? ",null,null,null,null,null,null,null,null,null,null,null,null,"Marque con una “X” en “Si” o “No” según corresponda en atención a cada pregunta"]
[]
[null,null,null,"Sí",null,null,null,null,"No  ","",null,null,null,null,null,"Bien o Servicio",null,"Pregunta",null,null,null,"Marque con un “X”, según corresponda "]
[null,null,null,null,null,null,null,null,null,null,null,null,null,null,null,null,null,null,null,null,null,null,"SI","NO","Si es Sí, de quién lo recibió"]
[null,null,null,null,null,null,null,null,null,null,null,null,null,null,null,"Planos de Seguridad",null,"¿El servicio/nivel educativo cuenta con planos de seguridad acorde a la normativa?"]
[null,null,null,"Precise las acciones incorporadas en los documentos de gestión",null,null,null,null,null,null,null,null,null,null,null,null,null,null,null,null,null,null,null,null,"De la DRE/GRE"]
[null,null,null,"Marque con una “X”, según corresponda ",null,null,null,null,null,null,null,null,null,null,null,null,null,null,null,null,null,null,null,null,"De la UGEL"]
[null,null,null,null,null,null,null,null,null,null,null,null,null,null,null,null,null,null,null,null,null,null,null,null,"De la Municipalidad"]
[null,null,null,null,null,null,null,"Riesgo de Desastres",null,null,"Seguridad y Defensa Nacional",null,null,null,null,null,null,null,null,null,null,null,null,null,"De una entidad privada"]
[null,null,"Documentos de Gestión",null,null,null,null,"Acciones Estratégicas","Acciones Operativas",null,"Acciones Estratégicas",null,"Acciones Operativas",null,null,null,null,null,null,null,null,null,null,null,"Adquisición de la IE"]
[null,null,null,null,null,null,null,null,null,null,null,null,null,null,null,null,null,null,null,null,null,null,null,null,"Donación"]
[null,null,"Proyecto Educativo Inst. (PEI)",null,null,null,null,"",null,null,""]
[null,null,"Plan Anual de Trabajo (PAT)",null,null,null,null,null,"",null,null,null,"",null,null,"Dispositivos de Seguridad",null,"¿El servicio/nivel educativo cuenta con dispositivos de seguridad acorde a lo que indica en sus planos de seguridad?"]
[null,null,"Proyecto Curricular. Inst. (PCI)",null,null,null,null,"",null,null,"",null,null,null,null,null,null,null,null,null,null,null,null,null,"De la DRE/GRE"]
[null,null,"Reglamento Interno (RI)",null,null,null,null,null,"",null,null,null,"",null,null,null,null,null,null,null,null,null,null,null,"De la UGEL"]
[null,null,"Otros",null,null,null,null,"","",null,"",null,"",null,null,null,null,null,null,null,null,null,null,null,"De la Municipalidad"]
[null,null,null,null,null,null,null,{"$f":"CONCATENATE(H26,I26,K26,M26)","v":""},null,null,null,null,null,null,null,null,null,null,null,null,null,null,null,null,"De una entidad privada"]
[null,null,null,null,null,null,null,null,null,null,null,null,null,null,null,null,null,null,null,null,null,null,null,null,"Adquisición de la IE"]
[null,null,null,null,null,null,null,null,null,null,null,null,null,null,null,null,null,null,null,null,null,null,null,null,"Donación"]
[]
[null,null,null,null,null,null,null,null,null,null,null,null,null,null,null,null,null,"¿El servicio/nivel educativo cuenta con dispositivos de seguridad incompletos"]
[null,null,null,null,null,null,null,null,null,null,null,null,null,null,null,null,null,null,null,null,null,null,null,null,"De la DRE/GRE"]
[null,null,null,null,null,null,null,null,null,null,null,null,null,null,null,"Otros Casos",null,null,null,null,null,null,null,null,"De la UGEL"]
[null,null,null,null,null,null,null,null,null,null,null,null,null,null,null,null,null,null,null,null,null,null,null,null,"De la Municipalidad"]
[null,null,null,null,null,null,null,null,null,null,null,null,null,null,null,null,null,null,null,null,null,null,null,null,"De una entidad privada"]
[null,null,null,null,null,null,null,null,null,null,null,null,null,null,null,null,null,null,null,null,null,null,null,null,"Adquisición de la IE"]
[null,null,null,null,null,null,null,null,null,null,null,null,null,null,null,null,null,null,null,null,null,null,null,null,"Donación"]
[]
[]
[]
[null,null,"703. EN EL PRESENTE AÑO, LOS MIEMBROS DE ESTE PRONOEI,",null,null,null,null,null,null,null,null,null,null,null,null,"704. EN EL PRESENTE AÑO, ESTE PRONOEI HA SUFRIDO EL IMPACTO DE"]
[null,null,null,"¿HAN RECIBIDO ACCIONES FORMATIVAS EN MATERIA DE LA GESTIÓN DEL RIESGO ",null,null,null,null,null,null,null,null,null,null,null,null,"DAÑOS DE UN FENÓMENO NATURAL O ANTRÓPICO?"]
[null,null,null,"DE DESASTRES (GRD) Y/O SEGURIDAD Y DEFENSA NACIONAL (SDN)?"]
[null,null,null,null,null,null,null,null,null,null,null,null,null,null,null,null,"Sí",null,null,null,null,null,"No  "]
[null,null,null,"Sí",null,null,null,null,"No  ",""]
[]
[null,null,null,null,null,null,null,null,null,null,"Entidad",null,"SI - NO",null,null,null,null,null,null,"¿El servicio fue",null,null,"Sí"]
[null,null,null,null,null,"El servicio fue brindado por:",null,null,null,"DRE/GRE",null,null,null,null,null,null,null,null,null,"suspendido?"]
[null,null,null,null,null,null,null,null,null,"UGEL",null,null,null,null,null,null,null,null,null,null,null,null,"No  "]
[null,null,null,null,null,null,null,null,null,"Municipio"]
[null,null,null,null,null,null,null,null,null,"ONG/Entidad privada",null,null,null,null,null,null,"¿Cuál de los siguientes canales se utilizó para reportar la emergencia a la UGEL?"]
[null,null,null,null,null,null,null,null,null,null,null,null,{"$f":"COUNTIF(M48:M51,\"SI\")+COUNTIF(M48:M51,\"SI\")","v":0},null,null,null,"Marque con una “X”, una o más opciones"]
[null,null,"Tematicas: Marque con una “X”, según corresponda"]
[null,null,"Gestión del Riesgo de Desastres",null,null,null,null,null,null,null,"Seguridad y Defensa Nacional",null,null,null,null,null,null,"Celular"]
[null,null,"Política/Plan NAcional en GRD",null,null,"Componentes, procesos o procedimientos de la GRD",null,null,"*Herramientas técnicas / Financieras en GRD",null,"Política/Plan Nacional en SDN",null,"Fundamentos de la SDN",null,null,null,null,"Radiofonía"]
[null,null,null,null,null,null,null,null,null,null,null,null,null,null,null,null,null,"Teléfono satelital"]
[null,null,null,null,null,null,null,null,null,null,null,null,null,null,null,null,null,"Plataforma web"]
[null,null,null,null,null,null,null,null,null,null,null,null,null,null,null,null,null,"Por conducto regular (oficio, informe)"]
[null,null,null,null,null,null,null,null,null,null,null,null,null,null,null,null,null,"No se sabía que había que reportar a la UGEL"]
[null,null,{"$f":"COUNTIF(C59:M59,\"X\")","v":0},null,null,null,null,null,null,null,null,null,null,null,null,null,null,"No se reportó la emergencia porque no hay cobertura ni canal disponible en la zona."]
[]
[]
[null,null,"705. EN EL PRESENTE AÑO, ESTE PRONOEI, ¿HA ORGANIZADO Y EJECUTADO",null,null,null,null,null,null,null,null,null,null,null,null,"707. EN EL AÑO 2024, ESTE PRONOEI, ¿PARTICIPÓ EN LOS SIMULACROS"]
[null,null,null,"CAMPAÑAS COMUNICACIONALES DE GESTIÓN DEL RIESGO DE DESASTRES (GRD) Y/O",null,null,null,null,null,null,null,null,null,null,null,null,"CONVOCADOS POR MINEDU Y/O INDECI?"]
[null,null,null,"SEGURIDAD Y DEFENSA NACIONAL (SDN)?"]
[null,null,null,null,null,null,null,null,null,null,null,null,null,null,null,null,"Sí","",null,null,null,null,"No  "]
[null,null,null,"Sí","",null,null,null,"No  "]
[]
[null,null,null,null,null,null,null,null,null,null,null,null,null,null,null,null,"¿Qué nivel de preparación lograron?"]
[null,null,null,"Tipo de campaña que realizó",null,null,null,null,null,null,null,null,null,null,null,null,"Marque con una “X”, el nivel logrado en cada simulacro"]
[null,null,null,null,null,"Ítems",null,null,"Elija una opción","Temática de la campaña*"]
[null,null,null,null,null,null,null,{"$f":"COUNTIF(I73:I81,\"SI\")+COUNTIF(I73:I81,\"NO\")","v":0},null,null,null,null,null,null,null,null,"N° de simulacro",null,null,null,"Nivel de preparación Marque con un “X”"]
[null,null,null,1,"Pasacalle",null,null,null,"","",null,null,null,null,null,null,null,null,null,null,"Inicio",null,"Proceso",null,"Bueno","Destacado"]
[null,null,null,2,"Feria",null,null,null,"","",null,null,null,null,null,null,1,"Primer simulacro",null,null,"",null,"",null,"",""]
[null,null,null,3,"Activaciones motivadoras",null,null,null,"","",null,null,null,null,null,null,2,"Segundo simulacro",null,null,"",null,"",null,"",""]
[null,null,null,4,"Conferencias /Foros",null,null,null,"","",null,null,null,null,null,null,3,"Tercer simulacro",null,null,"",null,"",null,"",""]
[null,null,null,5,"Webinars",null,null,null,"",""]
[null,null,null,6,"Difusión de afiches, trípticos, volantes",null,null,null,"",""]
[null,null,null,7,"Murales",null,null,null,"",""]
[null,null,null,8,"Post en redes sociales",null,null,null,"",""]
[null,null,null,9,"Post radiales",null,null,null,"",""]
[]
[]
[null,null,"706. ESTE PRONOEI, ¿CUENTA CON UN PLAN DE GESTIÓN DEL RIESGO DE DESASTRES?"]
[]
[null,null,null,"Sí",null,null,null,null,"No  ",""]
[]
[]
[null,null,null,"¿Qué actividades ha desarrollado en el Plan?"]
[null,null,null,"Marque con una “X”, una o más opciones"]
[]
[null,null,null,null,"Identificó los peligros más frecuentes de la IE. (Ejem: lluvias, huaycos, entre otros)."]
[null,null,null,null,"Identificó las vulnerabilidades en la IE. (Ejem: techos, canaletas, paredes, pisos en mal estado, personal sin capacitación, entre otros)."]
[null,null,null,null,"Priorizó acciones correctivas en la infraestructura de la IE con presupuesto de mantenimiento."]
[null,null,null,null,"Procedimientos de evacuación a zonas seguras en situaciones de emergencias."]
[null,null,null,null,"Procedimientos de contención y soporte socioemocional en situaciones de emergencias."]
[null,null,null,null,"Procedimientos de aplicación del currículo vigente en situaciones de emergencias"]

{"sheet":"C800","index":7,"n_rows":214,"n_cols":20,"rows_kept":214,"cut":false,"hidden":false,"merged":[[89,3,90,4],[89,5,90,5],[89,6,90,6],[87,14,87,17],[16,14,16,18],[18,6,18,8],[24,13,24,18],[20,13,20,18],[34,14,34,18],[42,13,42,18],[38,13,38,18],[111,5,111,6],[112,5,112,6],[35,5,35,7],[37,5,37,7],[73,5,73,8],[89,8,90,8],[89,7,90,7],[1,1,1,19],[2,1,2,19],[191,2,191,6],[191,7,191,9],[111,15,113,16],[117,15,117,16],[118,15,118,16],[119,15,119,16],[120,15,120,16],[111,18,113,19],[116,15,116,16],[121,15,121,16],[119,18,119,19],[120,18,120,19],[121,18,121,19],[124,5,124,8],[191,17,191,19],[109,5,109,6],[138,15,138,18],[33,5,33,8],[111,11,113,13],[111,14,113,14],[122,15,122,16],[123,15,123,16],[185,5,185,17],[138,5,138,8],[116,18,116,19],[117,18,117,19],[118,18,118,19],[155,17,155,19],[123,18,123,19],[114,18,114,19],[193,2,193,6],[193,7,193,9],[192,2,192,6],[192,7,192,9],[111,17,113,17],[192,10,192,16],[193,10,193,16],[193,17,193,19],[192,17,192,19],[156,17,157,17],[156,18,157,19],[114,15,114,16],[115,15,115,16],[122,18,122,19],[155,11,157,11],[191,10,191,16],[115,18,115,19],[6,1,6,20],[185,2,185,4],[164,18,164,19],[165,18,165,19],[166,18,166,19],[167,18,167,19],[159,18,159,19],[160,18,160,19],[161,18,161,19],[162,18,162,19],[163,18,163,19],[155,12,157,16],[158,18,158,19],[108,5,108,8],[110,5,110,6]]}
[""]
["","CENSO EDUCATIVO 2025"]
[null,"MATRÍCULA, PROMOTORES(AS) Y MATERIALES EDUCATIVOS"]
[]
[]
[]
[null,"800. DEL LOCAL DONDE FUNCIONA EL PRONOEI"]
[]
[null,"801. EL LOCAL DONDE FUNCIONA EL PRONOEI, ¿CUENTA CON LA LICENCIA",null,null,null,null,null,null,null,null,"808. EL SERVICIO DE ENERGÍA ELÉCTRICA QUE TIENE EL LOCAL PROVIENE DE:"]
[null,null,"DE FUNCIONAMIENTO?",null,null,null,null,null,null,null,null,"Marque con una “X”, una opción"]
[]
[null,null,"Sí","",null,"No  ",null,null,null,null,null,null,"Red Pública (de una empresa distribuidora de energía eléctrica)"]
[null,null,null,null,null,null,null,null,null,null,null,null,"Generador o motor del Municipio"]
[null,null,null,null,null,null,null,null,null,null,null,null,"Generador o motor del local educativo"]
[null,"802. ¿EL AMBIENTE ASIGNADO ES DE USO EXCLUSIVO PARA EL PRONOEI ?",null,null,null,null,null,null,null,null,null,null,"Generador o motor de la Comunidad"]
[null,null,null,null,null,null,null,null,null,null,null,null,"No Tiene"]
[null,null,"Sí","",null,null,null,null,null,null,null,null,"Otro",null,null,null,null,null,null,{"$f":"CONCATENATE(L13,L14,L15,L16,L17)","v":""}]
[]
[null,null,"No  ",null,"¿CON QUIÉN COMPARTE",null,null,null,null,null,null,null,null,"1. Empresa proveedora del servicio de energía eléctrica :"]
[null,null,null,null,"EL AMBIENTE ASIGNADO?",null,null,null,null,null,null,null,null,"Nombre:",null,null,null,null,null,"Suministro:"]
[]
[]
[null,"803. TIPO DE LOCAL DONDE FUNCIONA EL PRONOEI",null,null,null,null,null,null,null,null,null,null,null,"2.  Empresa proveedora del servicio de energía eléctrica :"]
[null,null,"Marque con una “X”, una opción",null,null,null,null,null,null,null,null,null,null,"Nombre:",null,null,null,null,null,"Suministro:"]
[]
[null,null,null,null,"Local construido para uso del PRONOEI"]
[null,null,null,"","Vivienda de la Promotor(a) Educativa Comunitaria",null,null,null,null,null,"809. EL AGUA QUE UTILIZA EL LOCAL PROVIENE DE:"]
[null,null,null,"","Otra vivienda particular, prestada al PRONOEI",null,null,null,null,null,null,"Marque con una “X”, una opción"]
[null,null,null,"","Local Municipal"]
[null,null,null,"","Local Comunal",null,null,null,null,null,null,"","Red Pública dentro del local (agua potable)"]
[null,null,null,"","Local de la Parroquia o Iglesia",null,null,null,null,null,null,"","Pilón de uso público (agua potable)"]
[null,null,null,"","Institución Educativa",null,null,null,null,null,null,"","Camión-cisterna u otro similar"]
[null,null,null,"","No tiene local fijo",null,null,null,null,null,null,"","Pozo"]
[null,null,null,"","Otros",null,null,null,null,null,null,"","Río, acequia, manan al o similar"]
[null,null,"",null,null,null,null,null,null,null,null,null,"Otro",null,null,null,null,null,null,{"$f":"CONCATENATE(L31,L32,L33,L34,L35)","v":""}]
[null,null,"",null,"Código modular :  "]
[null,null,"",null,null,null,null,null,"Ax: Inicial",null,null,null,null,"1. Empresa proveedora del servicio de agua:"]
[null,null,null,null,"Nivel Educativo :  ",null,null,null,"B0: Primaria",null,null,null,null,"Nombre:",null,null,null,null,null,"Suministro:"]
[null,null,null,null,null,null,null,null,"F0: Secundaria"]
[null,"804. ¿CUÁL ES EL AREA DEL TERRENO DEL LOCAL?",null,null,null,null,null,null,"Dx: CEBA"]
[null,null,null,null,null,null,null,null,"Ex: CEBE",null,null,null,null,"2.  Empresa proveedora del servicio de agua:"]
[null,null,null,"Área Total del terreno",null,null,":",null,null,null,null,null,null,"Nombre:",null,null,null,null,null,"Suministro:"]
[null,null,null,"Área Construída (todos los pisos)",null,null,":",null,{"$f":"H48+I45","v":0}]
[]
[null,null,null,null,"Área Techada del primer piso",null,null,null,null,null,"810. ¿TIENE EL LOCAL SERVICIO DE AGUA DE LUNES A VIERNES DURANTE TODO"]
[null,null,null,null,"Número de pisos",null,null,null,null,null,null,"EL HORARIO DE CLASES?"]
[]
[null,null,null,"Área sin construir",null,null,":",null,{"$f":"H42-H48","v":0},null,null,"Sí","",null,null,"No  "]
[]
[null,"805. ¿EL LOCAL DONDE FUNCIONA EL PRONOEI CUENTA CON UN MÓDULO",null,null,null,null,null,null,null,null,null,null,null,null,"Pase a la pregunta 812."]
[null,null,"PREFABRICADO?"]
[null,null,null,null,null,null,null,null,null,null,"811. ¿CUENTA CON DEPÓSITOS DE ALMACENAMIENTO DE AGUA?"]
[null,null,"Sí",null,null,"No  "]
[null,null,null,null,null,null,null,null,null,null,null,"Sí",null,null,null,"No  ",null,null,"Pase a la preg. 813."]
[null,null,null,null,"¿Cuál es el estado del módulo prefabricado donde"]
[null,null,null,null,"funciona el PRONOEI?"]
[null,null,null,null,"Marque con una “X”, una opción",null,null,null,null,null,null,null,"¿Su capacidad es suficiente?"]
[]
[null,null,null,null,"Bueno",null,null,null,null,null,null,null,"Sí",null,null,"No  "]
[null,null,null,null,"Regular"]
[null,null,null,null,"Malo",null,null,null,null,null,"812. ¿CUÁL ES EL ESTADO DE CONSERVACIÓN DEL DEPÓSITO DE ALMACENAMIENTO"]
[null,null,null,null,null,null,null,null,null,null,null,"DE AGUA? (Si tiene más de uno, refiérase a “la mayoría”) "]
[null,"806. EL TERRENO DEL LOCAL DONDE FUNCIONA EL PRONOEI, ¿ESTÁ SANEADO A",null,null,null,null,null,null,null,null,null,"Marque con una “X”, una opción"]
[null,null,"NOMBRE DEL MINEDU?"]
[null,null,null,null,null,null,null,null,null,null,null,null,null,null,"En buen estado"]
[null,null,"Sí",null,null,"No  ",null,"Pase a la preg. 808.",null,null,null,null,null,null,"Requiere mantenimiento"]
[null,null,null,null,null,null,null,null,null,null,null,null,null,null,"Requiere sustituirse"]
[]
[null,"807. SI LA PREGUNTA ANTERIOR ES SÍ, ENTONCES INDIQUE EL TIPO DE",null,null,null,null,null,null,null,null,"813. EL BAÑO O SERVICIO HIGIÉNICO QUE TIENE EL LOCAL ESTÁ CONECTADO A:"]
[null,null,"DOCUMENTO:",null,null,null,null,null,null,null,null,"Marque con una “X”, una opción"]
[]
[null,null,null,null,"   Partida registral",null,null,null,null,null,null,null,"Red Pública de desagüe"]
[null,null,null,null,null,null,null,null,null,null,null,null,"Pozo séptico (recibe tratamiento con cal, ceniza u otros desintegrantes de ...)"]
[null,null,null,null,"   Otro - especifique",null,null,null,null,null,null,null,"Pozo ciego o negro (no recibe tratamiento alguno para desintegrar residuos)"]
[null,null,null,null,null,null,null,null,null,null,null,null,"Río, acequia o canal"]
[null,null,null,null,null,null,null,null,null,null,null,null,"No tiene"]
[null,null,null,null,null,null,null,null,null,null,null,""]
[null,null,null,null,null,null,null,null,null,null,null,""]
[null,"814. ¿LOS SERVICIOS HIGIÉNICOS SON DE USO EXCLUSIVO DEL PRONOEI?",null,null,null,null,null,null,null,null,"819. MATERIAL PREDOMINANTE EN LOS PISOS DEL ESPACIO EDUCATIVO:"]
[null,null,null,null,null,null,null,null,null,null,null,"Marque con una “X”, una opción"]
[null,null,"Sí",null,null,"No  ",null,null,null,null,null,""]
[null,null,null,null,null,null,null,null,null,null,null,null,"1 - Tierra"]
[null,null,null,null,null,null,null,null,null,null,null,null,"2 - Madera (entablado)"]
[null,null,"¿Son diferenciados para niños y niñas?",null,null,null,null,null,null,null,null,null,"3 - Cemento"]
[null,null,null,null,null,null,null,null,null,null,null,null,"4 - Loseta, cerámico o similar"]
[null,null,"Sí",null,null,"No  ",null,null,null,null,null,null,"5 - Vinílico, pisopak o similar"]
[null,null,null,null,null,null,null,null,null,null,null,null,"6 - Parquet o madera pulida"]
[null,"815. ESPACIOS CON QUE CUENTA EL PRONOEI:",null,null,null,null,null,null,null,null,null,null,"7 - Otro"]
[]
[null,null,null,"ESPACIO",null," Si"," No","CANTIDAD","Área en:\nM2"]
[null,null,null,null,null,null,null,null,null,null,"820. ¿EL ESPACIO EDUCATIVO CUENTA CON VENTANAS?"]
[null,null,"01","Aula"]
[null,null,"02","Sala de psicomotrocidad",null,null,null,null,null,null,null,"Sí",null,null,null,"No  ","X",null,"Pase a la preg. 822."]
[null,null,"03","Depósito de material educativo"]
[null,null,"04","SS.HH para niños y niñas"]
[null,null,"05","SS.HH. para adultos",null,null,null,null,null,null,"821. ¿LAS VENTANAS DEL ESPACIO EDUCATIVO ESTÁN LIBRES PARA LA"]
[null,null,"06","Cocina",null,null,null,null,null,null,null,"ILUMINACIÓN Y VENTILACIÓN"]
[null,null,"07","Despensa"]
[null,null,"08","Patio",null,null,null,null,null,null,null,"Sí",null,null,null,"No  "]
[null,null,"09","Jardín"]
[null,null,"10","Juegos recreativos"]
[null,null,"11","Contenedores de basura",null,null,null,null,null,null,"822. PARA EL CICLO II; EN EL ESPACIO EDUCATIVO DEL PRONOEI, ¿SE CUENTA CON"]
[null,null,"12","Otro","",null,null,null,null,null,null,"MESA O MESAS PARA EL TRABAJO GRUPAL CON LOS NIÑOS Y NIÑAS?"]
[null,null,null,null,null,{"$f":"COUNTIF(F92:G103,\"X\")","v":0},null,{"$f":"SUM(H92:H103)","v":0},{"$f":"SUM(I92:I100)+I103","v":0}]
[null,"816. ¿CUÁL ES EL ESTADO DE CONSERVACIÓN DEL ESPACIO EDUCATIVO QUE USA",null,null,null,null,null,null,null,null,null,"Sí","",null,null,"No  ",null,null,"Pase a la preg. 824."]
[null,null,"CON MAYOR FRECUENCIA, DONDE SE REALIZAN LAS ACTIVIDADES CON LAS"]
[null,null,"NIÑAS Y NIÑOS?"]
[null,null,null,null,null,null,null,null,null,null,"823. RESPECTO A LA MESA O MESAS PARA EL TRABAJO GRUPAL DE LOS NIÑOS Y"]
[null,null,null,null,"COMPONENTE","Estado de conservación",null,null,null,null,null,"NIÑAS INDIQUE SU FORMA, ESTADO DE CONSERVACIÓN Y PARA ¿CUÁNTOS "]
[null,null,null,null,null,"Buen estado",null,"Regular","Mal estado",null,null,"NIÑOS SIRVE CADA UNA?"]
[null,null,{"$f":"CONCATENATE(F111,H111,I111)","v":""},"01","Piso"]
[null,null,{"$f":"CONCATENATE(F112,H112,I112)","v":""},"02","Pared",null,null,null,null,null,null,"Mobiliario",null,null,"¿Tiene?","Forma de la mesa",null,"¿A cuantos niños sirve?","Estado de conservación de la mesa"]
[null,null,{"$f":"CONCATENATE(F113,H113,I113)","v":""},"03","Techo"]
[null,null,null,null,null,null,null,{"$f":"COUNTIF(F111:I113,\"X\")","v":0}]
[null,"817. MATERIAL PREDOMINANTE EN LAS PAREDES DEL ESPACIO EDUCATIVO:",null,null,null,null,null,null,null,null,null,"01","Mesa",null,"","",null,"",""]
[null,null,"Marque con una “X”, una opción",null,null,null,null,null,null,null,null,"02","Mesa",null,"","",null,"",""]
[null,null,null,null,null,null,null,null,null,null,null,"03","Mesa",null,"","",null,"",""]
[null,null,null,null,"1 - Estera, cartón o plástico",null,null,null,null,null,null,"04","Mesa",null,"","",null,"",""]
[null,null,null,null,"2 - Eternit o fibra de concreto",null,null,null,null,null,null,"05","Mesa",null,"","",null,"",""]
[null,null,null,null,"3 - Madera",null,null,null,null,null,null,"06","Mesa",null,"","",null,"",""]
[null,null,null,null,"4 - Piedra con barro, cal o cemento",null,null,null,null,null,null,"07","Mesa",null,"","",null,"",""]
[null,null,null,null,"5 - Quincha",null,null,null,null,null,null,"08","Mesa",null,"","",null,"",""]
[null,null,null,null,"6 - Adobe o tapial",null,null,null,null,null,null,"09","Mesa",null,"","",null,"",""]
[null,null,null,null,"7 - Ladrillo o concreto",null,null,null,null,null,null,"10","Mesa",null,"","",null,"",""]
[null,null,null,null,"8 - Otro",null,null,null,null,null,null,null,null,null,{"$f":"COUNTIF(O115:O124,\"SI\")","v":0}]
[]
[null,"818. MATERIAL PREDOMINANTE EN LOS TECHOS DEL ESPACIO EDUCATIVO:",null,null,null,null,null,null,null,null,"824. ¿LAS MESAS Y SILLAS CORRESPONDEN AL TAMAÑO DE LOS NIÑOS Y NIÑAS?"]
[null,null,"Marque con una “X”, una opción"]
[null,null,null,null,null,null,null,null,null,null,null,"Sí","",null,null,"No  "]
[null,null,null,null,"01 - Paja, hoja de palmera, etc."]
[null,null,null,null,"02 - Estera, cartón o plástico"]
[null,null,null,null,"03 - Lata o latón",null,null,null,null,null,"825. ¿CUÁL ES LA FORMA DE ACCESO AL LOCAL DEL PRONOEI?"]
[null,null,null,null,"04 - Caña con barro"]
[null,null,null,null,"05 - Calamina",null,null,null,null,null,null,"Marque con una “X”, una opción"]
[null,null,null,null,"06 - Fibra de cemento"]
[null,null,null,null,"07 - Teja",null,null,null,null,null,null,null,null,"Rampa"]
[null,null,null,null,"08 - Madera",null,null,null,null,null,null,null,"","Gradas"]
[null,null,null,null,"09 - Concreto armado",null,null,null,null,null,null,null,"","Sin desnivel"]
[null,null,null,null,"10 - Otro",null,null,null,null,null,null,null,"","Otro"]
[]
[]
[]
[null,"826. EL LOCAL DEL PRONOEI, ¿HA SUFRIDO DAÑOS SEVEROS COMO: RAJADURAS",null,null,null,null,null,null,null,null,"830. ¿EL LOCAL CUENTA CON EL CERTIFICADO DE INSPECCIÓN TÉCNICA"]
[null,null,"EN PAREDES, COLUMNAS, CORROSIÓN DE LAS COLUMNAS EXPUESTAS,",null,null,null,null,null,null,null,null,"DE SEGURIDAD EN EDIFICACIONES – ITSE VIGENTE"]
[null,null,"ENTRE OTROS, EN LOS ÚLTIMOS 5 AÑOS POR ALGÚN EVENTO NATURAL?"]
[null,null,null,null,null,null,null,null,null,null,null,"Sí","",null,null,"No  "]
[]
[null,null,"Sí",null,null,"No  "]
[null,null,null,null,null,null,null,null,null,null,"831. ORDENE, DE ACUERDO A PRIORIDAD, LAS PRINCIPALES NECESIDADES"]
[null,null,null,null,null,null,null,null,null,null,null,"DE ACONDICIONAMIENTO DEL LOCAL DONDE FUNCIONA EL PRONOEI"]
[null,null,"¿Existe algún documento (constancia, certificado o informe)"]
[null,null,"que acredite los daños severos del local del PRONOEI?",null,null,null,null,null,null,null,null,"Escriba 1 para el más importante, hasta 10 para el menos importante en la columna Prioridad"]
[null,null,null,null,null,null,null,null,null,null,null,"y marque con un aspa “X” el/los espacios que requieran dicha atención"]
[null,null,"Sí",null,null,"No  "]
[]
[null,null,null,null,null,null,null,null,null,null,null,"PRIO- RI- DAD","ACCIONES DE ACONDICIONAMIENTO",null,null,null,null,"Marque con un aspa “X”"]
[null,"827. EL LOCAL DONDE FUNCIONA EL PRONOEI, ¿HA SIDO CONSTRUIDO",null,null,null,null,null,null,null,null,null,null,null,null,null,null,null,"AULAS"," SERVICIOS\nHIGIÉNICOS"]
[null,null,"EN LOS ÚLTIMOS 5 AÑOS?"]
[null,null,null,null,null,null,null,null,null,null,{"$f":"COUNTIF($L$159:$L$168,L159)","v":0},null,"Reparación de techos"]
[null,null,"Sí",null,null,"No  ",null,"Pase a la preg. 829.",null,null,0,null,"Reparación de muros"]
[null,null,null,null,null,null,null,null,null,null,0,null,"Reparación de puertas"]
[null,null,null,null,null,null,null,null,null,null,0,null,"Reparación de ventana"]
[null,"828. TIPO DE ENTIDAD EJECUTORA DE LA OBRA DE CONSTRUCCIÓN",null,null,null,null,null,null,null,null,0,null,"Reparación de instalaciones sanitarias"]
[null,null,"DEL LOCAL DONDE FUNCIONA EL PRONOEI",null,null,null,null,null,null,null,0,null,"Reparación de instalaciones eléctricas"]
[null,null,"Marque con una “X”, una opción",null,null,null,null,null,null,null,0,null,"Reparación de bienes"]
[null,null,null,null,null,null,null,null,null,null,0,null,"Reposición y/o adquisición de bienes"]
[null,null,null,null,"Gobierno Nacional / Proyecto especial",null,null,null,null,null,0,null,"Reparación de pisos"]
[null,null,null,null,"Gobierno Regional / Local",null,null,null,null,null,0,null,"Pintado"]
[null,null,null,null,"Entidades cooperativas / ONG ",null,null,null,null,null,null,{"$f":"SUM(L159:L168)","v":0},null,null,null,null,null,null,{"$f":"COUNTIF(R159:T168,\"X\")","v":0}]
[null,null,null,null,"Empresa privada"]
[null,null,null,null,"Otro"]
[null,null,null,null,null,null,null,null,null,null,"832. ¿LAS ÁREAS ABIERTAS DEL PRONOEI CUENTAN CON CUBIERTAS PARA LA"]
[null,null,null,null,null,null,null,null,null,null,null,"PROTECCIÓN DE LOS ESTUDIANTES POR LA EXPOSICIÓN PROLONGADA A"]
[null,"829. AÑO DE EJECUCIÓN DE LA OBRA DE CONSTRUCCIÓN DEL LOCAL DONDE",null,null,null,null,null,null,null,null,null,"LA RADIACIÓN SOLAR?"]
[null,null,"FUNCIONA EL PRONOEI",null,null,null,null,null,null,null,null,"Marque con una “X”, una opción"]
[]
[null,null,"Sí",null,null,"No  ",null,null,null,null,null,null,null,"Sí, totalmente"]
[null,null,null,null,null,null,null,null,null,null,null,null,null,"Sí, parcialmente"]
[null,null,null,null,null,null,null,null,null,null,null,null,null,"No"]
[null,null,null,null,"Año :"]
[]
[]
[]
[null,null,"ANOTACIONES COMPLEMENTARIAS QUE CONSIDERE NECESARIO AGREGAR"]
[]
[null,null,"Longitud máxima 200 caracteres",null,null,null,null,null,null,null,null,null,null,null,null,null,null,null,null,{"$f":"LEN(TRIM(F186))","v":0}]
[]
[]
[null,null,"DATOS DEL DIRECTOR(A) Y/O RESPONSABLE (S) DEL LLENADO DE LA CÉDULA"]
[]
[]
[null,null,"NOMBRES Y APELLIDOS",null,null,null,null,"CARGO",null,null,"CORREO ELECTRÓNICO",null,null,null,null,null,null,"TELÉFONO"]
[]
[]
[]
[]
[]
[]
[]
["PROF.COORDINADOR(A)"]
["PROMOTOR(A)-PEC"]
["OTRO"]
[]
[]
["Forma de la mesa"]
["1: Circular"]
["2: Cuadrada"]
["3: Rectangular"]
["4: Otro"]
[]
["Estado de conservación de la mesa?"]
["1: En buen estado"]
["2: Req. mantenimiento"]
["3: Req. sustituirse"]

{"sheet":"Enviar","index":8,"n_rows":9,"n_cols":4,"rows_kept":9,"cut":false,"hidden":false,"merged":[[0,1,0,4],[1,1,1,4]]}
[null,"CENSO EDUCATIVO 2025"]
[null,"MATRÍCULA, PROMOTORES(AS) Y MATERIALES EDUCATIVOS"]
[]
[]
[null,null,"Paso 1:","Realice el ENVÍO con su clave EOL."]
[]
[null,null,"Paso 2:","Una vez realizado el ENVÍO,  Revise su constancia de envio."]
[]
[null,null,"  ADVERTENCIA","ASEGÚRESE DE REGISTRAR TODA LA INFORMACIÓN DEL NIVEL INFORMANTE"]